Workbook

Sheet Dash Board
E4: Risk Based Decision Making Tool for Jambo Fresh trade Lane
J17: Dash Board

Sheet Information (hidden)
H2: Risk Based Decision Making Approach for International Shipping
C5: Description
C6: This application helps the party operating in the shipping domain to have an overview of thesystem level operational risks which are outside their boundary of control. Thrugh this overview the cost implications of the actons of other actors are made explicit. The party canuse this application to prioritize the risks and thereby develop strategies to treat these financial operational risks.
C12: Process
C13: Risk Assessment and Actor Analysis form the main blocks behind the functioning of RBDM tool. Through these blocks inputs for the application are obtained. Based on these inputs the application generates an risk-centric bow-tie diagram and actor-centric risk matrix. Though this application consolidates the most proactised risk assessment practises being followed in the industry it operates under the broader framework of Risk Management Process as per ISO 31000:2009.

Sheet Risk Register
D2: Risk Register
C4: Risk Number | D4: Risk Event | E4: Probability | F4: Likelihood | G4: Number of Actors Involved | K4: Probability Range | M4: Likelihood
G5: Cause | H5: Consequence | K5: Lower (>) | L5: Upper (<=)
C6: R1 | D6: Damage due to temperature changes in the container | E6: 1 | F6: VL | K6: 0.8 | L6: 1 | M6: VH | N6: 0.8 | O6: 1
C7: R2 | D7: Claim by Jambo Fresh | E7: 0.4 | F7: VL | K7: 0.6 | L7: 0.8 | M7: H | N7: 0.6 | O7: 0.8
C8: R3 | D8: Growers selling Avacados to other company | F8: L | K8: 0.4 | L8: 0.6 | M8: M | N8: 0.4 | O8: 0.6
C9: R4 | D9: Payment of guarantees at import side | F9: VL | K9: 0.3 | L9: 0.4 | M9: L | N9: 0.3 | O9: 0.4
C10: R5 | D10: Scanning takes very long at import side | F10: M | K10: 0 | L10: 0.2 | M10: VL | N10: 0 | O10: 0.2
C11: R6 | D11: Long waiting times at the customs | F11: L
C12: R7 | D12: Breakage of container door seal during the transport | F12: VL
C13: R8 | D13: Issue with Document Proof for road transport (“bewijs van wegvervoer”) at Belgium customs | F13: VL
C14: R9 | D14: Sometimes vessels arrive at ports other than Antwerp | F14: VL
C15: R10 | D15: Possibility of missing the vessel during trans-shipment | F15: L
C16: R11 | D16: Missing Container | F16: VL
C17: R12 | D17: Improper - phyto documentation | F17: L

Sheet Actor Register
D8: Actor Register
B10: Actor Number | C10: Name | D10: Name | E10: Role
B11: Act1 | C11: Bank | D11: Jambo Fresh | E11: Buyer
B12: Act2 | C12: Buyer | D12: Wintech | E12: Seller
B13: Act3 | C13: Cargo-owner | D13: Safmarine | E13: Sea Carrier
B14: Act4 | C14: Consignee | D14: KRA | E14: Government Agency
B15: Act5 | C15: Customs | D15: GMS | E15: Freight forwarder
B16: Act6 | C16: Freight forwarder | D16: KEPHIS | E16: Inspection Agency
B17: Act7 | C17: Freight Forwarder Association | D17: Grower | E17: Producer
B18: Act8 | C18: Government agency | D18: KPA | E18: Port Authority
B19: Act9 | C19: Inland Carrier | D19: van Duijn | E19: Freight forwarder
B20: Act10 | C20: Inspection | D20: APM | E20: Terminal Import
B21: Act11 | C21: Insurer | D21: Truck Export Side | E21: Interland Carrier
B22: Act12 | C22: IT & data company | D22: Truck Import Side | E22: Interland Carrier
B23: Act13 | C23: Legislative government | D23: Terminal Export Side | E23: Terminal Export
B24: Act14 | C24: Logistic Operator | D24: HTS | E24: Freight forwarder
B25: Act15 | C25: Middlemen Export | D25: Customs Kenya | E25: Customs Export
B26: Act16 | C26: Middlemen Import | D26: Customs Import | E26: Customs Import
C27: Port Association

Sheet Risk Analysis Template
D2: Risk Number | E2: R#
D3: Risk Event Title | E3: Enter the event
D4: Risk Description | E4: Description of the event
D5: Probability of occurance | E5: =ProbabiltyGrade(H5) -> VL | G5: Value | H5: =MAX(N12:N14)/100 -> 0
D6: Analysis Method | E6: Bow-Tie Analysis
D9: Causes Details
E10: Number | F10: Agent | I10: Cause Description | M10: Likelihood of Occurrence (%)
E11: C# | F11: External Factor | G11: Actor | H11: Risk Event | M11: Before Preventive Action | N11: After Preventive Action
E12: C1 | F12: - | G12: - | H12: - | I12: Enter Cause Details | M12: 0 | N12: =M12*(100-MAX(K19:K21))/100 -> 0
E13: C2 | F13: - | G13: - | H13: - | I13: Enter Cause Details | M13: 0 | N13: =M13*(100-MAX(L19:L21))/100 -> 0
E14: C3 | F14: - | G14: - | H14: - | I14: Enter Cause Details | M14: 0 | N14: =M14*(100-MAX(M19:M21))/100 -> 0
D16: Preventive Actions
E17: Number | F17: Agents | H17: Action Description | K17: Effectiveness on
E18: PA# | F18: Actor 1 | G18: Actor 2 | K18: C1 | L18: C2 | M18: C3
E19: PA1 | H19: None | K19: 0 | L19: 0 | M19: 0
E20: PA2 | H20: None | K20: 0 | L20: 0 | M20: 0
K21: 0 | L21: 0 | M21: 0
D22: Consequence Details
E23: Number | F23: Consequence Description | H23: Actor Impacts | N23: After Corrective action
E24: C# | H24: Actor 1 | I24: Impact 1 | J24: Actor 2 | K24: Impact 2 | L24: Actor 3 | M24: Impact 3 | N24: Impact 1 | O24: Impact 2 | P24: Impact 3
E25: Q1 | I25: 0 | K25: 0 | M25: 0 | N25: =I25*(100-MAX($K$32:$K$34))/100 -> 0 | O25: =K25*(100-MAX($K$32:$K$34))/100 -> 0 | P25: =M25*(100-MAX($K$32:$K$34))/100 -> 0
E26: Q2 | I26: 0 | K26: 0 | M26: 0 | N26: =I26*(100-MAX($L$32:$L$34))/100 -> 0 | O26: =K26*(100-MAX($L$32:$L$34))/100 -> 0 | P26: =M26*(100-MAX($L$32:$L$34))/100 -> 0
E27: Q3 | I27: 0 | K27: 0 | M27: 0 | N27: =I27*(100-MAX($M$32:$M$34))/100 -> 0 | O27: =K27*(100-MAX($M$32:$M$34))/100 -> 0 | P27: =M27*(100-MAX($M$32:$M$34))/100 -> 0
D29: Corretive Actions
E30: Number | F30: Agent | H30: Action Description | K30: Effectiveness on
E31: C# | F31: Actor 1 | G31: Actor 2 | K31: Q1 | L31: Q2 | M31: Q3
E32: CA1 | H32: None | K32: 0 | L32: 0 | M32: 0
E33: CA2 | H33: None | K33: 0 | L33: 0 | M33: 0

Sheet R15 (hidden)
D2: Risk Number | E2: R15
D3: Risk Event Title | E3: Enter the event
D4: Risk Description | E4: Description of the event
D5: Probability of occurance | E5: =ProbabiltyGrade(H5) -> VL | G5: Value | H5: =MAX(N12:N14)/100 -> 0
D6: Analysis Method | E6: Bow-Tie Analysis
D9: Causes Details
E10: Number | F10: Agent | I10: Cause Description | M10: Likelihood of Occurrence (%)
E11: C# | F11: External Factor | G11: Actor | H11: Risk Event | M11: Before Preventive Action | N11: After Preventive Action
E12: C1 | F12: - | G12: - | H12: - | I12: Enter Cause Details | M12: 0 | N12: =M12*(100-MAX(K19:K21))/100 -> 0
E13: C2 | F13: - | G13: - | H13: - | I13: Enter Cause Details | M13: 0 | N13: =M13*(100-MAX(L19:L21))/100 -> 0
E14: C3 | F14: - | G14: - | H14: - | I14: Enter Cause Details | M14: 0 | N14: =M14*(100-MAX(M19:M21))/100 -> 0
D16: Preventive Actions
E17: Number | F17: Agents | H17: Action Description | K17: Effectiveness on
E18: PA# | F18: Actor 1 | G18: Actor 2 | K18: C1 | L18: C2 | M18: C3
E19: PA1 | H19: None | K19: 0 | L19: 0 | M19: 0
E20: PA2 | H20: None | K20: 0 | L20: 0 | M20: 0
K21: 0 | L21: 0 | M21: 0
D22: Consequence Details
E23: Number | F23: Consequence Description | H23: Actor Impacts | N23: After Corrective action
E24: C# | H24: Actor 1 | I24: Impact 1 | J24: Actor 2 | K24: Impact 2 | L24: Actor 3 | M24: Impact 3 | N24: Impact 1 | O24: Impact 2 | P24: Impact 3
E25: Q1 | I25: 0 | K25: 0 | M25: 0 | N25: =I25*(100-MAX($K$32:$K$34))/100 -> 0 | O25: =K25*(100-MAX($K$32:$K$34))/100 -> 0 | P25: =M25*(100-MAX($K$32:$K$34))/100 -> 0
E26: Q2 | I26: 0 | K26: 0 | M26: 0 | N26: =I26*(100-MAX($L$32:$L$34))/100 -> 0 | O26: =K26*(100-MAX($L$32:$L$34))/100 -> 0 | P26: =M26*(100-MAX($L$32:$L$34))/100 -> 0
E27: Q3 | I27: 0 | K27: 0 | M27: 0 | N27: =I27*(100-MAX($M$32:$M$34))/100 -> 0 | O27: =K27*(100-MAX($M$32:$M$34))/100 -> 0 | P27: =M27*(100-MAX($M$32:$M$34))/100 -> 0
D29: Corretive Actions
E30: Number | F30: Agent | H30: Action Description | K30: Effectiveness on
E31: C# | F31: Actor 1 | G31: Actor 2 | K31: Q1 | L31: Q2 | M31: Q3
E32: CA1 | H32: None | K32: 0 | L32: 0 | M32: 0
E33: CA2 | H33: None | K33: 0 | L33: 0 | M33: 0

Sheet Matrix
B2: Actor Name
K3: Prioritization
C4: Impact | D4: VH | K4: Impact Level | L4: Grade | M4: Color Code
D5: H | K5: Unacceptable | L5: UA
D6: M | E6: R7 R6 R4 | G6: R3 | K6: Very High | L6: VH
D7: L | E7: R2 | K7: High | L7: H
D8: VL | E8: R5 R1 | K8: Medium | L8: M
E9: VL | F9: L | G9: M | H9: H | I9: VH | K9: Low | L9: L
E10: Probability | K10: Very Low | L10: VL
K11: Acceptable | L11: A

Sheet Actor Impact Template (hidden)
B2: Actor Number | C2: Act#
B3: Actor Name
B4: Role | C4: #What function in shipping domain | N4: Impact Range
B5: Description | N5: Lower (>) | O5: Upper (<=)
N6: 0.8 | O6: 1
N7: 0.6 | O7: 0.8
N8: 0.4 | O8: 0.6
N9: 0.2 | O9: 0.4
N10: 0 | O10: 0.2
B12: Impact Evaluation | G12: Risk Evaluation
C13: Max | D13: Grade
B14: Enter Maximum Acceptable Damage | C14: 10000 | D14: VH | G14: Risks | H14: Probability of Occurrence | I14: Impact Value | J14: Impact Grade
G15: ='Risk Register'!C6 -> R1 | H15: =Risklikelihood(G15) -> VL | I15: 0 | J15: VL
B16: Categorization | G16: ='Risk Register'!C7 -> R2 | H16: VL | I16: 0 | J16: VL
B17: Impact Level | C17: Impact Amount | D17: Grade | G17: ='Risk Register'!C8 -> R3 | H17: L | I17: 350 | J17: M
B18: Very High | C18: =C14 -> 10000 | D18: VH | G18: ='Risk Register'!C9 -> R4 | H18: VL | I18: 0 | J18: VL
B19: High | C19: =0.8*C18 -> 8000 | D19: H | G19: ='Risk Register'!C10 -> R5 | H19: M | I19: 0 | J19: VL
B20: Medium | C20: =0.6*C18 -> 6000 | D20: M | G20: ='Risk Register'!C11 -> R6 | H20: VL | I20: 0 | J20: VL
B21: Low | C21: =0.4*C18 -> 4000 | D21: L | G21: ='Risk Register'!C12 -> R7 | H21: L | I21: 0 | J21: VL
B22: Very Low | C22: =0.2*C18 -> 2000 | D22: VL | G22: ='Risk Register'!C13 -> R8 | H22: =Risklikelihood(G22) -> VL
G23: ='Risk Register'!C14 -> R9 | H23: VL
G24: ='Risk Register'!C15 -> R10 | H24: VL
B25: Scaling used for analysis | G25: ='Risk Register'!C16 -> R11 | H25: VL
B26: Impact Level | C26: Grade | D26: Impact Range | G26: ='Risk Register'!C17 -> R12 | H26: M
D27: Lower (>) | E27: Upper (<=)
B28: Very High | C28: VH | D28: 0.8 | E28: -
B29: High | C29: H | D29: 0.6 | E29: 0.8
B30: Medium | C30: M | D30: 0.4 | E30: 0.6
B31: Low | C31: L | D31: 0.2 | E31: 0.4
B32: Very Low | C32: VL | D32: 0 | E32: 0.2
B33: These values are subjective to actor

Sheet Matrix Template (hidden)
B2: Actor Name
K3: Prioritization
C4: Impact | D4: VH | K4: Impact Level | L4: Grade | M4: Color Code
D5: H | K5: Unacceptable | L5: UA
D6: M | K6: Very High | L6: VH
D7: L | K7: High | L7: H
D8: VL | K8: Medium | L8: M
E9: VL | F9: L | G9: M | H9: H | I9: VH | K9: Low | L9: L
E10: Probability | K10: Very Low | L10: VL
K11: Acceptable | L11: A

Sheet Bow Tie Template
G7: Bow-Tie Diagram
D10: Causes | G10: Preventive Actions | I10: R# | K10: Corrective Actions | M10: Consequences
D11: Number | E11: Agent | M11: Number | N11: Actor 1 | O11: Actor 2 | P11: Actor 3
D12: C# | E12: - | M12: Q# | N12: - | O12: - | P12: -
E13: - | N13: - | O13: - | P13: -
E14: - | N14: - | O14: - | P14: -

Sheet Bow Tie_R1
H7: Bow-Tie Diagram
D10: Causes | G10: Preventive Actions | I10: R1 | K10: Corrective Actions | M10: Consequences
D11: Number | E11: Agent | M11: Number | N11: Actor 1 | O11: Actor 2 | P11: Actor 3
D12: C1 | E12: Wintech | K12: CA1 | M12: Q1 | N12: Jumbo Fresh
D13: C2 | E13: Safmarine | M13: Q2
D14: C3 | E14: Safmarine | M14: Q3

Sheet R1
D2: Risk Number | E2: R1
D3: Risk Event Title | E3: Damage due to temperature changes in the container
D4: Risk Description | E4: Temperature readings can be very sensitive information, as in case of damage claims can be placed. At the moment if a damage occurs due to temperature deviations it is difficult to find out who is responsible. JamboFresh has very little visibility on that.
D5: Probability of occurance | E5: =ProbabiltyGrade(H5) -> VL | G5: Value | H5: =MAX(N12:N14)/100 -> 0.15
D6: Input Method | E6: Bow-Tie Analysis
D9: Causes Details
E10: Number | F10: Agent | I10: Cause Description | M10: Likelihood of Occurrence (%)
B11: 14 | E11: C# | F11: External Factor | G11: Actor | H11: Risk Event | M11: Before Preventive Action | N11: After Preventive Action
B12: 15 | E12: C1 | F12: - | G12: Wintech | H12: - | I12: Fruits were not precooled before loading onto the container at Nairobi | M12: 10 | N12: =M12*(100-MAX(K19:K21))/100 -> 10
B13: 4 | E13: C2 | F13: - | G13: Safmarine | H13: - | I13: The drivers shuts off the engine to save fuel at the export side especially during transportation from Nairobi to Mombassa and from Mombassa to Salalah | M13: 15 | N13: =M13*(100-MAX(L19:L21))/100 -> 15
E14: C3 | F14: - | G14: Safmarine | H14: - | I14: The temperature measuring device is not working well. If the damage occurs, JF would put a claim on Safmarine. | M14: 10 | N14: =M14*(100-MAX(M19:M21))/100 -> 10
D16: Preventive Actions
E17: Number | F17: Agents | H17: Action Description | K17: Effectiveness on
E18: PA# | F18: Actor 1 | G18: Actor 2 | K18: C1 | L18: C2 | M18: C3
E19: PA1 | K19: 0 | L19: 0 | M19: 0
E20: PA2 | H20: What is the preventive action? | K20: 0 | L20: 0 | M20: 0
K21: 0 | L21: 0 | M21: 0
D22: Consequence Details
E23: Number | F23: Consequence Description | H23: Actor Impacts | N23: After Corrective action
E24: C# | H24: Actor 1 | I24: Impact 1 | J24: Actor 2 | K24: Impact 2 | L24: Actor 3 | M24: Impact 3 | N24: Impact 1 | O24: Impact 2 | P24: Impact 3
E25: Q1 | F25: Cargo is damaged due to ripening of goods | H25: Jambo Fresh | I25: 50000 | K25: 0 | M25: 0 | N25: =I25*(100-MAX($K$32:$K$34))/100 -> 25000 | O25: =K25*(100-MAX($K$32:$K$34))/100 -> 0 | P25: =M25*(100-MAX($K$32:$K$34))/100 -> 0
E26: Q2 | I26: 0 | K26: 0 | M26: 0 | N26: =I26*(100-MAX($L$32:$L$34))/100 -> 0 | O26: =K26*(100-MAX($L$32:$L$34))/100 -> 0 | P26: =M26*(100-MAX($L$32:$L$34))/100 -> 0
E27: Q3 | K27: 0 | M27: 0 | N27: =I27*(100-MAX($M$32:$M$34))/100 -> 0 | O27: =K27*(100-MAX($M$32:$M$34))/100 -> 0 | P27: =M27*(100-MAX($M$32:$M$34))/100 -> 0
D29: Corretive Actions
E30: Number | F30: Agent | H30: Action Description | K30: Effectiveness on
E31: C# | F31: Actor 1 | G31: Actor 2 | K31: Q1 | L31: Q2 | M31: Q3
E32: CA1 | F32: Wintech | G32: Safmarine | H32: Put a claim on Wintech or Safmarine based on where in the transporttion the damaged has occured. | K32: 50 | L32: 0 | M32: 0
E33: CA2 | K33: 0 | L33: 0 | M33: 0
E34: CA3 | K34: 0 | L34: 0 | M34: 0

Sheet Bow Tie_R13 (hidden)
H7: Bow-Tie Diagram
D10: Causes | G10: Preventive Actions | I10: R13 | K10: Corrective Actions | M10: Consequences
D11: Number | E11: Agent | M11: Number | N11: Actor 1 | O11: Actor 2 | P11: Actor 3
D12: C1 | E12: - | M12: Q1
D13: C2 | E13: - | M13: Q2
D14: C3 | E14: - | M14: Q3

Sheet R13 (hidden)
D2: Risk Number | E2: R13
D3: Risk Event Title | E3: Enter the event
D4: Risk Description | E4: Description of the event
D5: Probability of occurance | E5: =ProbabiltyGrade(H5) -> VL | G5: Value | H5: =MAX(N12:N14)/100 -> 0
D6: Analysis Method | E6: Bow-Tie Analysis
D9: Causes Details
E10: Number | F10: Agent | I10: Cause Description | M10: Likelihood of Occurrence (%)
E11: C# | F11: External Factor | G11: Actor | H11: Risk Event | M11: Before Preventive Action | N11: After Preventive Action
E12: C1 | F12: - | G12: - | H12: - | I12: Enter Cause Details | M12: 0 | N12: =M12*(100-MAX(K19:K21))/100 -> 0
E13: C2 | F13: - | G13: - | H13: - | I13: Enter Cause Details | M13: 0 | N13: =M13*(100-MAX(L19:L21))/100 -> 0
E14: C3 | F14: - | G14: - | H14: - | I14: Enter Cause Details | M14: 0 | N14: =M14*(100-MAX(M19:M21))/100 -> 0
D16: Preventive Actions
E17: Number | F17: Agents | H17: Action Description | K17: Effectiveness on
E18: PA# | F18: Actor 1 | G18: Actor 2 | K18: C1 | L18: C2 | M18: C3
E19: PA1 | H19: None | K19: 0 | L19: 0 | M19: 0
E20: PA2 | H20: None | K20: 0 | L20: 0 | M20: 0
K21: 0 | L21: 0 | M21: 0
D22: Consequence Details
E23: Number | F23: Consequence Description | H23: Actor Impacts | N23: After Corrective action
E24: C# | H24: Actor 1 | I24: Impact 1 | J24: Actor 2 | K24: Impact 2 | L24: Actor 3 | M24: Impact 3 | N24: Impact 1 | O24: Impact 2 | P24: Impact 3
E25: Q1 | I25: 0 | K25: 0 | M25: 0 | N25: =I25*(100-MAX($K$32:$K$34))/100 -> 0 | O25: =K25*(100-MAX($K$32:$K$34))/100 -> 0 | P25: =M25*(100-MAX($K$32:$K$34))/100 -> 0
E26: Q2 | I26: 0 | K26: 0 | M26: 0 | N26: =I26*(100-MAX($L$32:$L$34))/100 -> 0 | O26: =K26*(100-MAX($L$32:$L$34))/100 -> 0 | P26: =M26*(100-MAX($L$32:$L$34))/100 -> 0
E27: Q3 | I27: 0 | K27: 0 | M27: 0 | N27: =I27*(100-MAX($M$32:$M$34))/100 -> 0 | O27: =K27*(100-MAX($M$32:$M$34))/100 -> 0 | P27: =M27*(100-MAX($M$32:$M$34))/100 -> 0
D29: Corretive Actions
E30: Number | F30: Agent | H30: Action Description | K30: Effectiveness on
E31: C# | F31: Actor 1 | G31: Actor 2 | K31: Q1 | L31: Q2 | M31: Q3
E32: CA1 | H32: None | K32: 0 | L32: 0 | M32: 0
E33: CA2 | H33: None | K33: 0 | L33: 0 | M33: 0

Sheet Bow Tie_R2 (hidden)
H7: Bow-Tie Diagram
D10: Causes | G10: Preventive Actions | I10: R2 | K10: Corrective Actions | M10: Consequences
D11: Number | E11: Agent | M11: Number | N11: Actor 1 | O11: Actor 2 | P11: Actor 3
D12: C1 | E12: Jumbo Fresh | M12: Q1 | N12: Avosell
D13: C2
D14: C3 | E14: -

Sheet R2
D2: Risk Number | E2: R2
D3: Risk Event Title | E3: Claim by Jambo Fresh
D4: Risk Description | E4: Mantaining the optimum temperature setting is very important for the stock to be fresh. Any tampering with the temperature can lead to loss for Jumbo Fresh and eventually penalties to the subcontractors
D5: Probability of occurance | E5: =ProbabiltyGrade(H5) -> VL | G5: Value | H5: =MAX(N12:N14)/100 -> 0.1
D6: Analysis Method | E6: Bow-Tie Analysis
D9: Causes Details
E10: Number | F10: Agent | I10: Cause Description | M10: Likelihood of Occurrence (%)
E11: C# | F11: External Factor | G11: Actor | H11: Risk Event | M11: Before Preventive Action | N11: After Preventive Action
E12: C1 | F12: - | G12: Jambo Fresh | H12: - | I12: Temperature was not regulated during the transportation | M12: 10 | N12: =M12*(100-MAX(K19:K21))/100 -> 10
E13: C2 | F13: - | H13: - | N13: =M13*(100-MAX(L19:L21))/100 -> 0
E14: C3 | F14: - | G14: - | H14: - | I14: Enter Cause Details | M14: 0 | N14: =M14*(100-MAX(M19:M21))/100 -> 0
D16: Preventive Actions
E17: Number | F17: Agents | H17: Action Description | K17: Effectiveness on
E18: PA# | F18: Actor 1 | G18: Actor 2 | K18: C1 | L18: C2 | M18: C3
E19: PA1 | K19: 0 | L19: 0 | M19: 0
E20: PA2 | H20: What is the preventive action? | K20: 0 | L20: 0 | M20: 0
K21: 0 | L21: 0 | M21: 0
D22: Consequence Details
E23: Number | F23: Consequence Description | H23: Actor Impacts | N23: After Corrective action
E24: C# | H24: Actor 1 | I24: Impact 1 | J24: Actor 2 | K24: Impact 2 | L24: Actor 3 | M24: Impact 3 | N24: Impact 1 | O24: Impact 2 | P24: Impact 3
E25: Q1 | F25: Wintech has to pay for the claim produced if the cargo was not precooled before loading onto the container | H25: Avomarine | I25: 50000 | K25: 0 | M25: 0 | N25: =I25*(100-MAX($K$32:$K$34))/100 -> 50000 | O25: =K25*(100-MAX($K$32:$K$34))/100 -> 0 | P25: =M25*(100-MAX($K$32:$K$34))/100 -> 0
E26: Q2 | K26: 0 | M26: 0 | N26: =I26*(100-MAX($L$32:$L$34))/100 -> 0 | O26: =K26*(100-MAX($L$32:$L$34))/100 -> 0 | P26: =M26*(100-MAX($L$32:$L$34))/100 -> 0
E27: Q3 | N27: =I27*(100-MAX($M$32:$M$34))/100 -> 0 | O27: =K27*(100-MAX($M$32:$M$34))/100 -> 0 | P27: =M27*(100-MAX($M$32:$M$34))/100 -> 0
D29: Corretive Actions
E30: Number | F30: Agent | H30: Action Description | K30: Effectiveness on
E31: C# | F31: Actor 1 | G31: Actor 2 | K31: Q1 | L31: Q2 | M31: Q3
E32: CA1 | H32: None | K32: 0 | L32: 0 | M32: 0
E33: CA2 | H33: None | K33: 0 | L33: 0 | M33: 0

Sheet Bow Tie_R3 (hidden)
H7: Bow-Tie Diagram
D10: Causes | G10: Preventive Actions | I10: R3 | K10: Corrective Actions | M10: Consequences
D11: Number | E11: Agent | M11: Number | N11: Actor 1 | O11: Actor 2 | P11: Actor 3
D12: C1 | E12: Grower | M12: Q1 | N12: Wintech
D13: C2 | E13: - | M13: Q2
D14: C3 | E14: - | M14: Q3

Sheet R3
D2: Risk Number | E2: R3
D3: Risk Event Title | E3: Growers selling Avacados to other company
D4: Risk Description | E4: When the avocados are harvested even if there have been prior agreements growers it may happen that the grower sells the avocados to a bigger company offering better prices. The bigger companies may also offer additional bonuses to growers at the end of the harvesting period to make it more attractive for growers to work with them. Especially in situations with high demands, it may happen that the growers prefer to work with the bigger exporters who offer better prices.
D5: Probability of occurance | E5: =ProbabiltyGrade(H5) -> L | G5: Value | H5: =MAX(N12:N14)/100 -> 0.4
D6: Analysis Method | E6: Bow-Tie Analysis
D9: Causes Details
E10: Number | F10: Agent | I10: Cause Description | M10: Likelihood of Occurrence (%)
E11: C# | F11: External Factor | G11: Actor | H11: Risk Event | M11: Before Preventive Action | N11: After Preventive Action
E12: C1 | F12: - | G12: Grower | H12: - | I12: Grower sells the avocados to a bigger company offering better prices. | M12: 40 | N12: =M12*(100-MAX(K19:K21))/100 -> 40
E13: C2 | F13: - | G13: - | H13: - | I13: Enter Cause Details | M13: 0 | N13: =M13*(100-MAX(L19:L21))/100 -> 0
E14: C3 | F14: - | G14: - | H14: - | I14: Enter Cause Details | M14: 0 | N14: =M14*(100-MAX(M19:M21))/100 -> 0
D16: Preventive Actions
E17: Number | F17: Agents | H17: Action Description | K17: Effectiveness on
E18: PA# | F18: Actor 1 | G18: Actor 2 | K18: C1 | L18: C2 | M18: C3
E19: PA1 | H19: What is the preventive action? | K19: 0 | L19: 0 | M19: 0
E20: PA2 | H20: None | K20: 0 | L20: 0 | M20: 0
K21: 0 | L21: 0 | M21: 0
D22: Consequence Details
E23: Number | F23: Consequence Description | H23: Actor Impacts | N23: After Corrective action
E24: C# | H24: Actor 1 | I24: Impact 1 | J24: Actor 2 | K24: Impact 2 | L24: Actor 3 | M24: Impact 3 | N24: Impact 1 | O24: Impact 2 | P24: Impact 3
E25: Q1 | H25: Wintech | I25: 1000 | K25: 0 | M25: 0 | N25: =I25*(100-MAX($K$32:$K$34))/100 -> 1000 | O25: =K25*(100-MAX($K$32:$K$34))/100 -> 0 | P25: =M25*(100-MAX($K$32:$K$34))/100 -> 0
E26: Q2 | I26: 0 | K26: 0 | M26: 0 | N26: =I26*(100-MAX($L$32:$L$34))/100 -> 0 | O26: =K26*(100-MAX($L$32:$L$34))/100 -> 0 | P26: =M26*(100-MAX($L$32:$L$34))/100 -> 0
E27: Q3 | I27: 0 | K27: 0 | M27: 0 | N27: =I27*(100-MAX($M$32:$M$34))/100 -> 0 | O27: =K27*(100-MAX($M$32:$M$34))/100 -> 0 | P27: =M27*(100-MAX($M$32:$M$34))/100 -> 0
D29: Corretive Actions
E30: Number | F30: Agent | H30: Action Description | K30: Effectiveness on
E31: C# | F31: Actor 1 | G31: Actor 2 | K31: Q1 | L31: Q2 | M31: Q3
E32: CA1 | H32: None | K32: 0 | L32: 0 | M32: 0
E33: CA2 | H33: None | K33: 0 | L33: 0 | M33: 0

Sheet R4
D2: Risk Number | E2: R4
D3: Risk Event Title | E3: Payment of guarantees at import side
D4: Risk Description | E4: For the import to the Europe, there is a trade facilitation named EUR1 (or movement certificate) that enables the importers to import goods with reduced (or even free) import duty based on the trade agreement between the EU and the beneficiary countries. Particular to the Netherlands, there is a new regulation that for the selected container for the EUR1 document inspection, importer is required to pay the guarantee of around 1,500-1,600 euros per case (or per container?). This guarantee money will be released back to the importer only after Customs establish that the EUR1 document is not fake.
D5: Probability of occurance | E5: =ProbabiltyGrade(H5) -> VL | G5: Value | H5: =MAX(N12:N14)/100 -> 0.1
D6: Analysis Method | E6: Bow-Tie Analysis
D9: Causes Details
E10: Number | F10: Agent | I10: Cause Description | M10: Likelihood of Occurrence (%)
E11: C# | F11: External Factor | G11: Actor | H11: Risk Event | M11: Before Preventive Action | N11: After Preventive Action
E12: C1 | F12: - | G12: Customs Import | H12: - | I12: This guarantee money will be released back to the importer only after Customs establish that the EUR1 document is not fake. | M12: 10 | N12: =M12*(100-MAX(K19:K21))/100 -> 10
E13: C2 | F13: - | G13: - | H13: - | I13: Enter Cause Details | M13: 0 | N13: =M13*(100-MAX(L19:L21))/100 -> 0
E14: C3 | F14: - | G14: - | H14: - | I14: Enter Cause Details | M14: 0 | N14: =M14*(100-MAX(M19:M21))/100 -> 0
D16: Preventive Actions
E17: Number | F17: Agents | H17: Action Description | K17: Effectiveness on
E18: PA# | F18: Actor 1 | G18: Actor 2 | K18: C1 | L18: C2 | M18: C3
E19: PA1 | H19: None | K19: 0 | L19: 0 | M19: 0
E20: PA2 | H20: None | K20: 0 | L20: 0 | M20: 0
K21: 0 | L21: 0 | M21: 0
D22: Consequence Details
E23: Number | F23: Consequence Description | H23: Actor Impacts | N23: After Corrective action
E24: C# | H24: Actor 1 | I24: Impact 1 | J24: Actor 2 | K24: Impact 2 | L24: Actor 3 | M24: Impact 3 | N24: Impact 1 | O24: Impact 2 | P24: Impact 3
E25: Q1 | H25: Jambo Fresh | I25: 1600 | K25: 0 | M25: 0 | N25: =I25*(100-MAX($K$32:$K$34))/100 -> 1600 | O25: 25 | P25: =M25*(100-MAX($K$32:$K$34))/100 -> 0
E26: Q2 | I26: 0 | K26: 0 | M26: 0 | N26: =I26*(100-MAX($L$32:$L$34))/100 -> 0 | O26: =K26*(100-MAX($L$32:$L$34))/100 -> 0 | P26: =M26*(100-MAX($L$32:$L$34))/100 -> 0
E27: Q3 | I27: 0 | K27: 0 | M27: 0 | N27: =I27*(100-MAX($M$32:$M$34))/100 -> 0 | O27: =K27*(100-MAX($M$32:$M$34))/100 -> 0 | P27: =M27*(100-MAX($M$32:$M$34))/100 -> 0
D29: Corretive Actions
E30: Number | F30: Agent | H30: Action Description | K30: Effectiveness on
E31: C# | F31: Actor 1 | G31: Actor 2 | K31: Q1 | L31: Q2 | M31: Q3
E32: CA1 | H32: None | K32: 0 | L32: 0 | M32: 0
E33: CA2 | H33: None | K33: 0 | L33: 0 | M33: 0

Sheet R5
D2: Risk Number | E2: R5
D3: Risk Event Title | E3: Scanning takes very long at import side
D4: Risk Description | E4: If goods arrive via Rotterdam container scanning is a big issue. It can take up to one week before the container is scanned. For sensitive goods that can affect the quality. For some fruits coming from Columbia the damage of the delay can be so big that the whole cargo is lost. JamboFresh had a period that 75% of the cargo was selected for a scan – where?. They were very surprised by this high rate. In other periods they have much less scans but in this specific period the scanning rate was very high
D5: Probability of occurance | E5: =ProbabiltyGrade(H5) -> M | G5: Value | H5: =MAX(N12:N14)/100 -> 0.6
D6: Analysis Method | E6: Bow-Tie Analysis
D9: Causes Details
E10: Number | F10: Agent | I10: Cause Description | M10: Likelihood of Occurrence (%)
E11: C# | F11: External Factor | G11: Actor | H11: Risk Event | M11: Before Preventive Action | N11: After Preventive Action
E12: C1 | F12: - | G12: Customs Import | H12: - | I12: JamboFresh had a period that 75% of the cargo was selected for a scan | M12: 60 | N12: =M12*(100-MAX(K19:K21))/100 -> 60
E13: C2 | F13: - | G13: Wintech | H13: - | M13: 45 | N13: =M13*(100-MAX(L19:L21))/100 -> 45
E14: C3 | F14: - | G14: - | H14: - | I14: Enter Cause Details | M14: 0 | N14: =M14*(100-MAX(M19:M21))/100 -> 0
D16: Preventive Actions
E17: Number | F17: Agents | H17: Action Description | K17: Effectiveness on
E18: PA# | F18: Actor 1 | G18: Actor 2 | K18: C1 | L18: C2 | M18: C3
E19: PA1 | H19: None | K19: 0 | L19: 0 | M19: 0
E20: PA2 | H20: None | K20: 0 | L20: 0 | M20: 0
K21: 0 | L21: 0 | M21: 0
D22: Consequence Details
E23: Number | F23: Consequence Description | H23: Actor Impacts | N23: After Corrective action
E24: C# | H24: Actor 1 | I24: Impact 1 | J24: Actor 2 | K24: Impact 2 | L24: Actor 3 | M24: Impact 3 | N24: Impact 1 | O24: Impact 2 | P24: Impact 3
E25: Q1 | F25: There can be demurrage costs also which amount to around 300 euros | H25: Jambo Fresh | I25: 10000 | K25: 0 | M25: 0 | N25: =I25*(100-MAX($K$32:$K$34))/100 -> 10000 | O25: =K25*(100-MAX($K$32:$K$34))/100 -> 0 | P25: =M25*(100-MAX($K$32:$K$34))/100 -> 0
E26: Q2 | I26: 0 | K26: 0 | M26: 0 | N26: =I26*(100-MAX($L$32:$L$34))/100 -> 0 | O26: =K26*(100-MAX($L$32:$L$34))/100 -> 0 | P26: =M26*(100-MAX($L$32:$L$34))/100 -> 0
E27: Q3 | I27: 0 | K27: 0 | M27: 0 | N27: =I27*(100-MAX($M$32:$M$34))/100 -> 0 | O27: =K27*(100-MAX($M$32:$M$34))/100 -> 0 | P27: =M27*(100-MAX($M$32:$M$34))/100 -> 0
D29: Corretive Actions
E30: Number | F30: Agent | H30: Action Description | K30: Effectiveness on
E31: C# | F31: Actor 1 | G31: Actor 2 | K31: Q1 | L31: Q2 | M31: Q3
E32: CA1 | H32: None | K32: 0 | L32: 0 | M32: 0
E33: CA2 | H33: None | K33: 0 | L33: 0 | M33: 0

Sheet R6
D2: Risk Number | E2: R6
D3: Risk Event Title | E3: Long waiting times at the customs
D4: Risk Description | E4: There were some cases of customs declaration system down during the working day (from 9.00 am morning to 15.00 – 16.00 pm). With such process that works out of business expectation, JamboFresh needs to manage the order delivery to the customers
D5: Probability of occurance | E5: =ProbabiltyGrade(H5) -> VL | G5: Value | H5: =MAX(N12:N14)/100 -> 0.2
D6: Analysis Method | E6: Bow-Tie Analysis
D9: Causes Details
E10: Number | F10: Agent | I10: Cause Description | M10: Likelihood of Occurrence (%)
E11: C# | F11: External Factor | G11: Actor | H11: Risk Event | M11: Before Preventive Action | N11: After Preventive Action
E12: C1 | F12: - | G12: Customs Import | H12: - | I12: Customs declaration systems go down | M12: 5 | N12: =M12*(100-MAX(K19:K21))/100 -> 5
E13: C2 | F13: - | G13: Wintech | H13: - | I13: Original bill of landing not yet received | M13: 20 | N13: =M13*(100-MAX(L19:L21))/100 -> 20
E14: C3 | F14: - | G14: - | H14: - | I14: Enter Cause Details | M14: 0 | N14: =M14*(100-MAX(M19:M21))/100 -> 0
D16: Preventive Actions
E17: Number | F17: Agents | H17: Action Description | K17: Effectiveness on
E18: PA# | F18: Actor 1 | G18: Actor 2 | K18: C1 | L18: C2 | M18: C3
E19: PA1 | H19: None | K19: 0 | L19: 0 | M19: 0
E20: PA2 | H20: None | K20: 0 | L20: 0 | M20: 0
K21: 0 | L21: 0 | M21: 0
D22: Consequence Details
E23: Number | F23: Consequence Description | H23: Actor Impacts | N23: After Corrective action
E24: C# | H24: Actor 1 | I24: Impact 1 | J24: Actor 2 | K24: Impact 2 | L24: Actor 3 | M24: Impact 3 | N24: Impact 1 | O24: Impact 2 | P24: Impact 3
E25: Q1 | F25: There can be demurrage costs also which amount to around 300 euros | H25: Jambo Fresh | I25: 10000 | K25: 0 | M25: 0 | N25: =I25*(100-MAX($K$32:$K$34))/100 -> 10000 | O25: =K25*(100-MAX($K$32:$K$34))/100 -> 0 | P25: =M25*(100-MAX($K$32:$K$34))/100 -> 0
E26: Q2 | I26: 0 | K26: 0 | M26: 0 | N26: =I26*(100-MAX($L$32:$L$34))/100 -> 0 | O26: =K26*(100-MAX($L$32:$L$34))/100 -> 0 | P26: =M26*(100-MAX($L$32:$L$34))/100 -> 0
E27: Q3 | I27: 0 | K27: 0 | M27: 0 | N27: =I27*(100-MAX($M$32:$M$34))/100 -> 0 | O27: =K27*(100-MAX($M$32:$M$34))/100 -> 0 | P27: =M27*(100-MAX($M$32:$M$34))/100 -> 0
D29: Corretive Actions
E30: Number | F30: Agent | H30: Action Description | K30: Effectiveness on
E31: C# | F31: Actor 1 | G31: Actor 2 | K31: Q1 | L31: Q2 | M31: Q3
E32: CA1 | H32: None | K32: 0 | L32: 0 | M32: 0
E33: CA2 | H33: None | K33: 0 | L33: 0 | M33: 0

Sheet R7
D2: Risk Number | E2: R7
D3: Risk Event Title | E3: Breakage of container door seal during the transport
D4: Risk Description | E4: This is a serious concern for JF. If the temperature is destabilized, fruit ripening begins and Ethylene gas is released. This gas can transiently increase the ripening rate of the fruits. If unattended, the whole cargo can be lost. This is a high risk especially if the temperature is destabilized at the export side and not so much at the import side. The loss can be that the whole cargo is damaged amounting to 30k euros directly.
D5: Probability of occurance | E5: =ProbabiltyGrade(H5) -> L | G5: Value | H5: =MAX(N12:N14)/100 -> 0.25
D6: Analysis Method | E6: Bow-Tie Analysis
D9: Causes Details
E10: Number | F10: Agent | I10: Cause Description | M10: Likelihood of Occurrence (%)
E11: C# | F11: External Factor | G11: Actor | H11: Risk Event | M11: Before Preventive Action | N11: After Preventive Action
E12: C1 | F12: - | G12: Customs Import | H12: - | I12: Seal can be broken during inspection | M12: 25 | N12: =M12*(100-MAX(K19:K21))/100 -> 25
E13: C2 | F13: - | G13: - | H13: - | I13: Enter Cause Details | M13: 0 | N13: =M13*(100-MAX(L19:L21))/100 -> 0
E14: C3 | F14: - | G14: Customs Import | H14: - | I14: Enter Cause Details | M14: 0 | N14: =M14*(100-MAX(M19:M21))/100 -> 0
D16: Preventive Actions
E17: Number | F17: Agents | H17: Action Description | K17: Effectiveness on
E18: PA# | F18: Actor 1 | G18: Actor 2 | K18: C1 | L18: C2 | M18: C3
E19: PA1 | H19: What is the preventive action? | K19: 0 | L19: 0 | M19: 0
E20: PA2 | H20: What is the preventive action? | K20: 0 | L20: 0 | M20: 0
K21: 0 | L21: 0 | M21: 0
D22: Consequence Details
E23: Number | F23: Consequence Description | H23: Actor Impacts | N23: After Corrective action
E24: C# | H24: Actor 1 | I24: Impact 1 | J24: Actor 2 | K24: Impact 2 | L24: Actor 3 | M24: Impact 3 | N24: Impact 1 | O24: Impact 2 | P24: Impact 3
E25: Q1 | F25: The loss can be that the whole cargo is damaged amounting to 30k euros directly. | H25: Jambo Fresh | I25: 30000 | K25: 0 | M25: 0 | N25: =I25*(100-MAX($K$32:$K$34))/100 -> 30000 | O25: =K25*(100-MAX($K$32:$K$34))/100 -> 0 | P25: =M25*(100-MAX($K$32:$K$34))/100 -> 0
E26: Q2 | I26: 0 | K26: 0 | M26: 0 | N26: =I26*(100-MAX($L$32:$L$34))/100 -> 0 | O26: =K26*(100-MAX($L$32:$L$34))/100 -> 0 | P26: =M26*(100-MAX($L$32:$L$34))/100 -> 0
E27: Q3 | I27: 0 | K27: 0 | M27: 0 | N27: =I27*(100-MAX($M$32:$M$34))/100 -> 0 | O27: =K27*(100-MAX($M$32:$M$34))/100 -> 0 | P27: =M27*(100-MAX($M$32:$M$34))/100 -> 0
D29: Corretive Actions
E30: Number | F30: Agent | H30: Action Description | K30: Effectiveness on
E31: C# | F31: Actor 1 | G31: Actor 2 | K31: Q1 | L31: Q2 | M31: Q3
E32: CA1 | F32: Shipowner | G32: Shippers | H32: What is the corrective action? | K32: 0 | L32: 0 | M32: 0
E33: CA2 | F33: Logistic Operator | G33: Shippers | H33: What is the corrective action? | K33: 0 | L33: 0 | M33: 0

Sheet Sheet29 (hidden)
A1: 25 | B1: 3 | C1: 32 | D1: 33 | J1: 14 | K1: 15 | L1: 0 | M1: 0 | N1: 0
F5: 33 | G5: 3
J8: 2 | K8: 33 | L8: 30
L10: 0 | M10: 0 | N10: 0
D12: 102
D13: 38.25
D14: 25.5

Sheet R8
D2: Risk Number | E2: R8
D3: Risk Event Title | E3: Issue with Document Proof for road transport (“bewijs van wegvervoer”) at Belgium customs
D4: Risk Description | E4: Description of the event
D5: Probability of occurance | E5: =ProbabiltyGrade(H5) -> VL | G5: Value | H5: =MAX(N12:N14)/100 -> 0
D6: Analysis Method | E6: Bow-Tie Analysis
D9: Causes Details
E10: Number | F10: Agent | I10: Cause Description | M10: Likelihood of Occurrence (%)
E11: C# | F11: External Factor | G11: Actor | H11: Risk Event | M11: Before Preventive Action | N11: After Preventive Action
E12: C1 | F12: - | G12: - | H12: - | I12: Enter Cause Details | M12: 0 | N12: =M12*(100-MAX(K19:K21))/100 -> 0
E13: C2 | F13: - | G13: - | H13: - | I13: Enter Cause Details | M13: 0 | N13: =M13*(100-MAX(L19:L21))/100 -> 0
E14: C3 | F14: - | G14: - | H14: - | I14: Enter Cause Details | M14: 0 | N14: =M14*(100-MAX(M19:M21))/100 -> 0
D16: Preventive Actions
E17: Number | F17: Agents | H17: Action Description | K17: Effectiveness on
E18: PA# | F18: Actor 1 | G18: Actor 2 | K18: C1 | L18: C2 | M18: C3
E19: PA1 | H19: What is the preventive action? | K19: 0 | L19: 0 | M19: 0
E20: PA2 | H20: What is the preventive action? | K20: 0 | L20: 0 | M20: 0
K21: 0 | L21: 0 | M21: 0
D22: Consequence Details
E23: Number | F23: Consequence Description | H23: Actor Impacts | N23: After Corrective action
E24: C# | H24: Actor 1 | I24: Impact 1 | J24: Actor 2 | K24: Impact 2 | L24: Actor 3 | M24: Impact 3 | N24: Impact 1 | O24: Impact 2 | P24: Impact 3
E25: Q1 | I25: 0 | K25: 0 | M25: 0 | N25: =I25*(100-MAX($K$32:$K$34))/100 -> 0 | O25: =K25*(100-MAX($K$32:$K$34))/100 -> 0 | P25: =M25*(100-MAX($K$32:$K$34))/100 -> 0
E26: Q2 | I26: 0 | K26: 0 | M26: 0 | N26: =I26*(100-MAX($L$32:$L$34))/100 -> 0 | O26: =K26*(100-MAX($L$32:$L$34))/100 -> 0 | P26: =M26*(100-MAX($L$32:$L$34))/100 -> 0
E27: Q3 | I27: 0 | K27: 0 | M27: 0 | N27: =I27*(100-MAX($M$32:$M$34))/100 -> 0 | O27: =K27*(100-MAX($M$32:$M$34))/100 -> 0 | P27: =M27*(100-MAX($M$32:$M$34))/100 -> 0
D29: Corretive Actions
E30: Number | F30: Agent | H30: Action Description | K30: Effectiveness on
E31: C# | F31: Actor 1 | G31: Actor 2 | K31: Q1 | L31: Q2 | M31: Q3
E32: CA1 | F32: Shipowner | G32: Shippers | H32: What is the corrective action? | K32: 0 | L32: 0 | M32: 0
E33: CA2 | F33: Logistic Operator | G33: Shippers | H33: What is the corrective action? | K33: 0 | L33: 0 | M33: 0

Sheet R9
D2: Risk Number | E2: R9
D3: Risk Event Title | E3: Sometimes vessels arrive at ports other than Antwerp
D4: Risk Description | E4: The vessel normally arrives in Antwerp, but sometimes they go via Felixstowe. When the ship arrives in the weekend some ports do not do handling in the weekend, the port of Rotterdam does. So it can happen that the goods arrive at port of Rotterdam as well
D5: Probability of occurance | E5: =ProbabiltyGrade(H5) -> VL | G5: Value | H5: =MAX(N12:N14)/100 -> 0.2
D6: Analysis Method | E6: Bow-Tie Analysis
D9: Causes Details
E10: Number | F10: Agent | I10: Cause Description | M10: Likelihood of Occurrence (%)
E11: C# | F11: External Factor | G11: Actor | H11: Risk Event | M11: Before Preventive Action | N11: After Preventive Action
E12: C1 | F12: - | G12: Safmarine | H12: - | I12: Rerouting by the shipper | M12: 20 | N12: =M12*(100-MAX(K19:K21))/100 -> 20
E13: C2 | F13: - | G13: - | H13: - | I13: Enter Cause Details | M13: 0 | N13: =M13*(100-MAX(L19:L21))/100 -> 0
E14: C3 | F14: - | G14: - | H14: - | I14: Enter Cause Details | M14: 0 | N14: =M14*(100-MAX(M19:M21))/100 -> 0
D16: Preventive Actions
E17: Number | F17: Agents | H17: Action Description | K17: Effectiveness on
E18: PA# | F18: Actor 1 | G18: Actor 2 | K18: C1 | L18: C2 | M18: C3
E19: PA1 | H19: What is the preventive action? | K19: 0 | L19: 0 | M19: 0
E20: PA2 | H20: What is the preventive action? | K20: 0 | L20: 0 | M20: 0
K21: 0 | L21: 0 | M21: 0
D22: Consequence Details
E23: Number | F23: Consequence Description | H23: Actor Impacts | N23: After Corrective action
E24: C# | H24: Actor 1 | I24: Impact 1 | J24: Actor 2 | K24: Impact 2 | L24: Actor 3 | M24: Impact 3 | N24: Impact 1 | O24: Impact 2 | P24: Impact 3
E25: Q1 | F25: Delay of few days | H25: Jambo Fresh | I25: 20000 | K25: 0 | M25: 0 | N25: =I25*(100-MAX($K$32:$K$34))/100 -> 20000 | O25: =K25*(100-MAX($K$32:$K$34))/100 -> 0 | P25: =M25*(100-MAX($K$32:$K$34))/100 -> 0
E26: Q2 | I26: 0 | K26: 0 | M26: 0 | N26: =I26*(100-MAX($L$32:$L$34))/100 -> 0 | O26: =K26*(100-MAX($L$32:$L$34))/100 -> 0 | P26: =M26*(100-MAX($L$32:$L$34))/100 -> 0
E27: Q3 | I27: 0 | K27: 0 | M27: 0 | N27: =I27*(100-MAX($M$32:$M$34))/100 -> 0 | O27: =K27*(100-MAX($M$32:$M$34))/100 -> 0 | P27: =M27*(100-MAX($M$32:$M$34))/100 -> 0
D29: Corretive Actions
E30: Number | F30: Agent | H30: Action Description | K30: Effectiveness on
E31: C# | F31: Actor 1 | G31: Actor 2 | K31: Q1 | L31: Q2 | M31: Q3
E32: CA1 | F32: Shipowner | G32: Shippers | H32: What is the corrective action? | K32: 0 | L32: 0 | M32: 0
E33: CA2 | F33: Logistic Operator | G33: Shippers | H33: What is the corrective action? | K33: 0 | L33: 0 | M33: 0

Sheet R10
D2: Risk Number | E2: R10
D3: Risk Event Title | E3: Possibility of missing the vessel during trans-shipment
D4: Risk Description | E4: Big problem is when the goods are transferred from a smaller vessel to a bigger ship (there is a transshipment). For goods coming from Mombasa there is always a transshipment, as the big boats do not travel to Mombasa. The transshipment takes place in Salalah and there are big boats coming from China. If you miss the boat then it take a week. So at times it takes 21 days to receive the container but sometimes more than 30 days. The problem with missing the boat is not so much on the Kenyan port but on the transshipment port
D5: Probability of occurance | E5: =ProbabiltyGrade(H5) -> VL | G5: Value | H5: =MAX(N12:N14)/100 -> 0.05
D6: Analysis Method | E6: Bow-Tie Analysis
D9: Causes Details
E10: Number | F10: Agent | I10: Cause Description | M10: Likelihood of Occurrence (%)
E11: C# | F11: External Factor | G11: Actor | H11: Risk Event | M11: Before Preventive Action | N11: After Preventive Action
E12: C1 | F12: - | G12: Safmarine | H12: - | I12: Transshipment at Salalah | M12: 5 | N12: =M12*(100-MAX(K19:K21))/100 -> 5
E13: C2 | F13: - | G13: - | H13: - | I13: Enter Cause Details | M13: 0 | N13: =M13*(100-MAX(L19:L21))/100 -> 0
E14: C3 | F14: - | G14: - | H14: - | I14: Enter Cause Details | M14: 0 | N14: =M14*(100-MAX(M19:M21))/100 -> 0
D16: Preventive Actions
E17: Number | F17: Agents | H17: Action Description | K17: Effectiveness on
E18: PA# | F18: Actor 1 | G18: Actor 2 | K18: C1 | L18: C2 | M18: C3
E19: PA1 | H19: What is the preventive action? | K19: 0 | L19: 0 | M19: 0
E20: PA2 | H20: What is the preventive action? | K20: 0 | L20: 0 | M20: 0
K21: 0 | L21: 0 | M21: 0
D22: Consequence Details
E23: Number | F23: Consequence Description | H23: Actor Impacts | N23: After Corrective action
E24: C# | H24: Actor 1 | I24: Impact 1 | J24: Actor 2 | K24: Impact 2 | L24: Actor 3 | M24: Impact 3 | N24: Impact 1 | O24: Impact 2 | P24: Impact 3
E25: Q1 | F25: Delay of 30 days could mean there is a loss of whole cargo | H25: Jambo Fresh | I25: 30000 | K25: 0 | M25: 0 | N25: =I25*(100-MAX($K$32:$K$34))/100 -> 30000 | O25: =K25*(100-MAX($K$32:$K$34))/100 -> 0 | P25: =M25*(100-MAX($K$32:$K$34))/100 -> 0
E26: Q2 | I26: 0 | K26: 0 | M26: 0 | N26: =I26*(100-MAX($L$32:$L$34))/100 -> 0 | O26: =K26*(100-MAX($L$32:$L$34))/100 -> 0 | P26: =M26*(100-MAX($L$32:$L$34))/100 -> 0
E27: Q3 | I27: 0 | K27: 0 | M27: 0 | N27: =I27*(100-MAX($M$32:$M$34))/100 -> 0 | O27: =K27*(100-MAX($M$32:$M$34))/100 -> 0 | P27: =M27*(100-MAX($M$32:$M$34))/100 -> 0
D29: Corretive Actions
E30: Number | F30: Agent | H30: Action Description | K30: Effectiveness on
E31: C# | F31: Actor 1 | G31: Actor 2 | K31: Q1 | L31: Q2 | M31: Q3
E32: CA1 | F32: Safmarine | H32: Jambo Fresh can put a claim of | K32: 0 | L32: 0 | M32: 0
E33: CA2 | F33: Logistic Operator | G33: Shippers | H33: What is the corrective action? | K33: 0 | L33: 0 | M33: 0

Sheet R11
D2: Risk Number | E2: R11
D3: Risk Event Title | E3: Missing Container
D4: Risk Description | E4: In practice it has happened that a container is lost. From earlier experiences they know of two cases when a container lots and reappears 7-8 months later. So the container is at the end there but the cargo is completely damaged. The value was in the range of 80 000 euros
D5: Probability of occurance | E5: =ProbabiltyGrade(H5) -> VL | G5: Value | H5: =MAX(N12:N14)/100 -> 0.05
D6: Analysis Method | E6: Bow-Tie Analysis
D9: Causes Details
E10: Number | F10: Agent | I10: Cause Description | M10: Likelihood of Occurrence (%)
E11: C# | F11: External Factor | G11: Actor | H11: Risk Event | M11: Before Preventive Action | N11: After Preventive Action
E12: C1 | F12: - | G12: - | H12: - | I12: Enter Cause Details | M12: 5 | N12: =M12*(100-MAX(K19:K21))/100 -> 5
E13: C2 | F13: - | G13: - | H13: - | I13: Enter Cause Details | M13: 0 | N13: =M13*(100-MAX(L19:L21))/100 -> 0
E14: C3 | F14: - | G14: - | H14: - | I14: Enter Cause Details | M14: 0 | N14: =M14*(100-MAX(M19:M21))/100 -> 0
D16: Preventive Actions
E17: Number | F17: Agents | H17: Action Description | K17: Effectiveness on
E18: PA# | F18: Actor 1 | G18: Actor 2 | K18: C1 | L18: C2 | M18: C3
E19: PA1 | H19: What is the preventive action? | K19: 0 | L19: 0 | M19: 0
E20: PA2 | H20: What is the preventive action? | K20: 0 | L20: 0 | M20: 0
K21: 0 | L21: 0 | M21: 0
D22: Consequence Details
E23: Number | F23: Consequence Description | H23: Actor Impacts | N23: After Corrective action
E24: C# | H24: Actor 1 | I24: Impact 1 | J24: Actor 2 | K24: Impact 2 | L24: Actor 3 | M24: Impact 3 | N24: Impact 1 | O24: Impact 2 | P24: Impact 3
E25: Q1 | F25: Whole cargo can be damaged | H25: Jambo Fresh | I25: 50000 | K25: 0 | M25: 0 | N25: =I25*(100-MAX($K$32:$K$34))/100 -> 50000 | O25: =K25*(100-MAX($K$32:$K$34))/100 -> 0 | P25: =M25*(100-MAX($K$32:$K$34))/100 -> 0
E26: Q2 | I26: 0 | K26: 0 | M26: 0 | N26: =I26*(100-MAX($L$32:$L$34))/100 -> 0 | O26: =K26*(100-MAX($L$32:$L$34))/100 -> 0 | P26: =M26*(100-MAX($L$32:$L$34))/100 -> 0
E27: Q3 | I27: 0 | K27: 0 | M27: 0 | N27: =I27*(100-MAX($M$32:$M$34))/100 -> 0 | O27: =K27*(100-MAX($M$32:$M$34))/100 -> 0 | P27: =M27*(100-MAX($M$32:$M$34))/100 -> 0
D29: Corretive Actions
E30: Number | F30: Agent | H30: Action Description | K30: Effectiveness on
E31: C# | F31: Actor 1 | G31: Actor 2 | K31: Q1 | L31: Q2 | M31: Q3
E32: CA1 | F32: Safmarine | H32: Putting a claim on Safmarine | K32: 0 | L32: 0 | M32: 0
E33: CA2 | F33: Logistic Operator | G33: Shippers | H33: What is the corrective action? | K33: 0 | L33: 0 | M33: 0

Sheet R12
D2: Risk Number | E2: R12
D3: Risk Event Title | E3: Improper - phyto documentation
D4: Risk Description | E4: Wintech fails to send the courier containing original bill of landing in time. To save some money, the employees at Wintech wait of different bills of landing to accumulate and send them in one courier. JF has recommended Wintech to use DHL but they cannot enforce.
D5: Probability of occurance | E5: =ProbabiltyGrade(H5) -> M | G5: Value | H5: =MAX(N12:N14)/100 -> 0.45
D6: Analysis Method | E6: Bow-Tie Analysis
D9: Causes Details
E10: Number | F10: Agent | I10: Cause Description | M10: Likelihood of Occurrence (%)
E11: C# | F11: External Factor | G11: Actor | H11: Risk Event | M11: Before Preventive Action | N11: After Preventive Action
E12: C1 | F12: - | G12: Wintech | H12: - | I12: Administrative errors at Wintech side | M12: 45 | N12: =M12*(100-MAX(K19:K21))/100 -> 45
E13: C2 | F13: - | G13: - | H13: - | I13: Enter Cause Details | M13: 0 | N13: =M13*(100-MAX(L19:L21))/100 -> 0
E14: C3 | F14: - | G14: - | H14: - | I14: Enter Cause Details | M14: 0 | N14: =M14*(100-MAX(M19:M21))/100 -> 0
D16: Preventive Actions
E17: Number | F17: Agents | H17: Action Description | K17: Effectiveness on
E18: PA# | F18: Actor 1 | G18: Actor 2 | K18: C1 | L18: C2 | M18: C3
E19: PA1 | H19: None | K19: 0 | L19: 0 | M19: 0
E20: PA2 | H20: None | K20: 0 | L20: 0 | M20: 0
K21: 0 | L21: 0 | M21: 0
D22: Consequence Details
E23: Number | F23: Consequence Description | H23: Actor Impacts | N23: After Corrective action
E24: C# | H24: Actor 1 | I24: Impact 1 | J24: Actor 2 | K24: Impact 2 | L24: Actor 3 | M24: Impact 3 | N24: Impact 1 | O24: Impact 2 | P24: Impact 3
E25: Q1 | F25: Delay of few days | H25: Jambo Fresh | I25: 10000 | K25: 0 | M25: 0 | N25: =I25*(100-MAX($K$32:$K$34))/100 -> 10000 | O25: 25 | P25: =M25*(100-MAX($K$32:$K$34))/100 -> 0
E26: Q2 | I26: 0 | K26: 0 | M26: 0 | N26: =I26*(100-MAX($L$32:$L$34))/100 -> 0 | O26: =K26*(100-MAX($L$32:$L$34))/100 -> 0 | P26: =M26*(100-MAX($L$32:$L$34))/100 -> 0
E27: Q3 | I27: 0 | K27: 0 | M27: 0 | N27: =I27*(100-MAX($M$32:$M$34))/100 -> 0 | O27: =K27*(100-MAX($M$32:$M$34))/100 -> 0 | P27: =M27*(100-MAX($M$32:$M$34))/100 -> 0
D29: Corretive Actions
E30: Number | F30: Agent | H30: Action Description | K30: Effectiveness on
E31: C# | F31: Actor 1 | G31: Actor 2 | K31: Q1 | L31: Q2 | M31: Q3
E32: CA1 | H32: None | K32: 0 | L32: 0 | M32: 0
E33: CA2 | H33: None | K33: 0 | L33: 0 | M33: 0

Sheet R14 (hidden)
D2: Risk Number | E2: R14
D3: Risk Event Title | E3: Enter the event
D4: Risk Description | E4: Description of the event
D5: Probability of occurance | E5: =ProbabiltyGrade(H5) -> VL | G5: Value | H5: =MAX(N12:N14)/100 -> 0
D6: Analysis Method | E6: Bow-Tie Analysis
D9: Causes Details
E10: Number | F10: Agent | I10: Cause Description | M10: Likelihood of Occurrence (%)
E11: C# | F11: External Factor | G11: Actor | H11: Risk Event | M11: Before Preventive Action | N11: After Preventive Action
E12: C1 | F12: - | G12: - | H12: - | I12: Enter Cause Details | M12: 0 | N12: =M12*(100-MAX(K19:K21))/100 -> 0
E13: C2 | F13: - | G13: - | H13: - | I13: Enter Cause Details | M13: 0 | N13: =M13*(100-MAX(L19:L21))/100 -> 0
E14: C3 | F14: - | G14: - | H14: - | I14: Enter Cause Details | M14: 0 | N14: =M14*(100-MAX(M19:M21))/100 -> 0
D16: Preventive Actions
E17: Number | F17: Agents | H17: Action Description | K17: Effectiveness on
E18: PA# | F18: Actor 1 | G18: Actor 2 | K18: C1 | L18: C2 | M18: C3
E19: PA1 | H19: None | K19: 0 | L19: 0 | M19: 0
E20: PA2 | H20: None | K20: 0 | L20: 0 | M20: 0
K21: 0 | L21: 0 | M21: 0
D22: Consequence Details
E23: Number | F23: Consequence Description | H23: Actor Impacts | N23: After Corrective action
E24: C# | H24: Actor 1 | I24: Impact 1 | J24: Actor 2 | K24: Impact 2 | L24: Actor 3 | M24: Impact 3 | N24: Impact 1 | O24: Impact 2 | P24: Impact 3
E25: Q1 | I25: 0 | K25: 0 | M25: 0 | N25: =I25*(100-MAX($K$32:$K$34))/100 -> 0 | O25: =K25*(100-MAX($K$32:$K$34))/100 -> 0 | P25: =M25*(100-MAX($K$32:$K$34))/100 -> 0
E26: Q2 | I26: 0 | K26: 0 | M26: 0 | N26: =I26*(100-MAX($L$32:$L$34))/100 -> 0 | O26: =K26*(100-MAX($L$32:$L$34))/100 -> 0 | P26: =M26*(100-MAX($L$32:$L$34))/100 -> 0
E27: Q3 | I27: 0 | K27: 0 | M27: 0 | N27: =I27*(100-MAX($M$32:$M$34))/100 -> 0 | O27: =K27*(100-MAX($M$32:$M$34))/100 -> 0 | P27: =M27*(100-MAX($M$32:$M$34))/100 -> 0
D29: Corretive Actions
E30: Number | F30: Agent | H30: Action Description | K30: Effectiveness on
E31: C# | F31: Actor 1 | G31: Actor 2 | K31: Q1 | L31: Q2 | M31: Q3
E32: CA1 | H32: None | K32: 0 | L32: 0 | M32: 0
E33: CA2 | H33: None | K33: 0 | L33: 0 | M33: 0

Sheet Jambo Fresh Matrix
B2: Actor Name | C2: Company X
K3: Prioritization
C4: Impact | D4: VH | F4: R7 | G4: R10 | H4: R11 | K4: Impact Level | L4: Grade | M4: Color Code
D5: H | E5: R9 | H5: R1 | K5: Unacceptable | L5: UA
D6: M | E6: R6 | F6: R12 | I6: R5 | K6: Very High | L6: VH
D7: L | G7: R4 | K7: High | L7: H
D8: VL | E8: R8 | G8: R3 R2 | K8: Medium | L8: M
E9: VL | F9: L | G9: M | H9: H | I9: VH | K9: Low | L9: L
E10: Probability | K10: Very Low | L10: VL
K11: Acceptable | L11: A

Sheet Act1
B2: Actor Number | C2: Act1
B3: Actor Name | C3: Jambo Fresh
B4: Role | C4: Buyer | N4: Impact Range
B5: Description | N5: Lower (>) | O5: Upper (<=)
N6: 0.8 | O6: 1
N7: 0.6 | O7: 0.8
N8: 0.4 | O8: 0.6
N9: 0.2 | O9: 0.4
N10: 0 | O10: 0.2
B12: Impact Evaluation | G12: Risk Evaluation
C13: Max | D13: Grade
B14: Enter Maximum Damage | C14: 30000 | D14: VH | G14: Risks | H14: Probability of Occurrence | I14: Impact Value | J14: Impact Grade
G15: ='Risk Register'!C6 -> R1 | H15: H | I15: 25000 | J15: H
B16: Categorization | G16: ='Risk Register'!C7 -> R2 | H16: M | I16: 0 | J16: VL
B17: Impact Level | C17: Impact Amount | D17: Grade | G17: ='Risk Register'!C8 -> R3 | H17: M | I17: 0 | J17: VL
B18: Very High | C18: 30000 | D18: VH | G18: ='Risk Register'!C9 -> R4 | H18: M | I18: 1600 | J18: L
B19: High | C19: 10000 | D19: H | G19: ='Risk Register'!C10 -> R5 | H19: VH | I19: 10000 | J19: M
B20: Medium | C20: 2500 | D20: M | G20: ='Risk Register'!C11 -> R6 | H20: =Risklikelihood(G20) -> VL | I20: 10000 | J20: M
B21: Low | C21: 750 | D21: L | G21: ='Risk Register'!C12 -> R7 | H21: L | I21: 30000 | J21: VH
B22: Very Low | C22: 200 | D22: VL | G22: ='Risk Register'!C13 -> R8 | H22: VL | I22: 0 | J22: VL
G23: ='Risk Register'!C14 -> R9 | H23: VL | I23: 20000 | J23: H
G24: ='Risk Register'!C15 -> R10 | H24: M | I24: 30000 | J24: VH
B25: Scaling used for analysis | G25: ='Risk Register'!C16 -> R11 | H25: H | I25: 50000 | J25: VH
B26: Impact Level | C26: Grade | D26: Impact Range | G26: ='Risk Register'!C17 -> R12 | H26: L | I26: 10000 | J26: M
D27: Lower (>) | E27: Upper (<=)
B28: Very High | C28: VH | D28: 0.8 | E28: -
B29: High | C29: H | D29: 0.6 | E29: 0.8
B30: Medium | C30: M | D30: 0.4 | E30: 0.6
B31: Low | C31: L | D31: 0.2 | E31: 0.4
B32: Very Low | C32: VL | D32: 0 | E32: 0.2
B33: These values are subjective to actor

Sheet Wintech Matrix (hidden)
B2: Actor Name | C2: Wintech
K3: Prioritization
C4: Impact | D4: VH | K4: Impact Level | L4: Grade | M4: Color Code
D5: H | K5: Unacceptable | L5: UA
D6: M | K6: Very High | L6: VH
D7: L | K7: High | L7: H
D8: VL | E8: R11 R10 R9 R8 R6 R4 R2 R1 | F8: R7 R3 | G8: R12 R5 | K8: Medium | L8: M
E9: VL | F9: L | G9: M | H9: H | I9: VH | K9: Low | L9: L
E10: Probability | K10: Very Low | L10: VL
K11: Acceptable | L11: A

Sheet Act2 (hidden)
B2: Actor Number | C2: Act2
B3: Actor Name | C3: Wintech
B4: Role | C4: Seller | N4: Impact Range
B5: Description | N5: Lower (>) | O5: Upper (<=)
N6: 0.8 | O6: 1
N7: 0.6 | O7: 0.8
N8: 0.4 | O8: 0.6
N9: 0.2 | O9: 0.4
N10: 0 | O10: 0.2
B12: Impact Evaluation | G12: Risk Evaluation
C13: Max | D13: Grade
B14: Enter Maximum Acceptable Damage | C14: 50000 | D14: VH | G14: Risks | H14: Probability of Occurrence | I14: Impact Value | J14: Impact Grade
G15: ='Risk Register'!C6 -> R1 | H15: =Risklikelihood(G15) -> VL | I15: 0 | J15: VL
B16: Categorization | G16: ='Risk Register'!C7 -> R2 | H16: VL | I16: 0 | J16: VL
B17: Impact Level | C17: Impact Amount | D17: Grade | G17: ='Risk Register'!C8 -> R3 | H17: L | I17: 1000 | J17: VL
B18: Very High | C18: 50000 | D18: VH | G18: ='Risk Register'!C9 -> R4 | H18: VL | I18: 0 | J18: VL
B19: High | C19: =0.8*C18 -> 40000 | D19: H | G19: ='Risk Register'!C10 -> R5 | H19: M | I19: 0 | J19: VL
B20: Medium | C20: =0.6*C18 -> 30000 | D20: M | G20: ='Risk Register'!C11 -> R6 | H20: VL | I20: 0 | J20: VL
B21: Low | C21: =0.4*C18 -> 20000 | D21: L | G21: ='Risk Register'!C12 -> R7 | H21: L | I21: 0 | J21: VL
B22: Very Low | C22: =0.2*C18 -> 10000 | D22: VL | G22: ='Risk Register'!C13 -> R8 | H22: =Risklikelihood(G22) -> VL | I22: 0 | J22: VL
G23: ='Risk Register'!C14 -> R9 | H23: VL | I23: 0 | J23: VL
G24: ='Risk Register'!C15 -> R10 | H24: VL | I24: 0 | J24: VL
B25: Scaling used for analysis | G25: ='Risk Register'!C16 -> R11 | H25: VL | I25: 0 | J25: VL
B26: Impact Level | C26: Grade | D26: Impact Range | G26: ='Risk Register'!C17 -> R12 | H26: M | I26: 0 | J26: VL
D27: Lower (>) | E27: Upper (<=)
B28: Very High | C28: VH | D28: 0.8 | E28: -
B29: High | C29: H | D29: 0.6 | E29: 0.8
B30: Medium | C30: M | D30: 0.4 | E30: 0.6
B31: Low | C31: L | D31: 0.2 | E31: 0.4
B32: Very Low | C32: VL | D32: 0 | E32: 0.2
B33: These values are subjective to actor
I36: Impact Range | K36: Grade | L36: Scale
I37: Lower (>) | J37: Upper (<=)
I38: =$C$14*D28 -> 40000 | J38: - | K38: VH | L38: Very High
I39: =$C$14*D29 -> 30000 | J39: 40000 | K39: H | L39: High
I40: =$C$14*D30 -> 20000 | J40: =$C$14*E30 -> 30000 | K40: M | L40: Medium
I41: 10000 | J41: 20000 | K41: L | L41: Low
I42: 0 | J42: 10000 | K42: VL | L42: Very Low

Sheet Safmarine Matrix (hidden)
B2: Actor Name | C2: Safmarine
K3: Prioritization
C4: Impact | D4: VH | K4: Impact Level | L4: Grade | M4: Color Code
D5: H | K5: Unacceptable | L5: UA
D6: M | E6: R6 R5 | K6: Very High | L6: VH
D7: L | E7: R7 R3 | K7: High | L7: H
D8: VL | E8: R4 R1 | I8: R2 | K8: Medium | L8: M
E9: VL | F9: L | G9: M | H9: H | I9: VH | K9: Low | L9: L
E10: Probability | K10: Very Low | L10: VL
K11: Acceptable | L11: A

Sheet Act3 (hidden)
B2: Actor Number | C2: Act3
B3: Actor Name | C3: Safmarine
B4: Role | C4: Sea Carrier | N4: Impact Range
B5: Description | N5: Lower (>) | O5: Upper (<=)
N6: 0.8 | O6: 1
N7: 0.6 | O7: 0.8
N8: 0.4 | O8: 0.6
N9: 0.2 | O9: 0.4
N10: 0 | O10: 0.2
B12: Impact Evaluation | G12: Risk Evaluation
C13: Max | D13: Grade
B14: Enter Maximum Acceptable Damage | C14: 500 | D14: VH | G14: Risks | H14: Probability of Occurrence | I14: Impact Value | J14: Impact Grade
G15: ='Risk Register'!C6 -> R1 | H15: =Risklikelihood(G15) -> VL | I15: 0 | J15: VL
B16: Categorization | G16: ='Risk Register'!C7 -> R2 | H16: VL | I16: 30000 | J16: VH
B17: Impact Level | C17: Impact Amount | D17: Grade | G17: ='Risk Register'!C8 -> R3 | H17: L | I17: 0 | J17: VL
B18: Very High | C18: =C14 -> 500 | D18: VH | G18: ='Risk Register'!C9 -> R4 | H18: VL | I18: 0 | J18: VL
B19: High | C19: =0.8*C18 -> 400 | D19: H | G19: ='Risk Register'!C10 -> R5 | H19: M | I19: 0 | J19: VL
B20: Medium | C20: =0.6*C18 -> 300 | D20: M | G20: ='Risk Register'!C11 -> R6 | H20: VL | I20: 0 | J20: VL
B21: Low | C21: =0.4*C18 -> 200 | D21: L | G21: ='Risk Register'!C12 -> R7 | H21: L | I21: 0 | J21: VL
B22: Very Low | C22: =0.2*C18 -> 100 | D22: VL | G22: ='Risk Register'!C13 -> R8 | H22: =Risklikelihood(G22) -> VL | I22: 0 | J22: VL
G23: ='Risk Register'!C14 -> R9 | H23: VL | I23: 0 | J23: VL
G24: ='Risk Register'!C15 -> R10 | H24: VL | I24: 0 | J24: VL
B25: Scaling used for analysis | G25: ='Risk Register'!C16 -> R11 | H25: VL | I25: 0 | J25: VL
B26: Impact Level | C26: Grade | D26: Impact Range | G26: ='Risk Register'!C17 -> R12 | H26: M | I26: 0 | J26: VL
D27: Lower (>) | E27: Upper (<=)
B28: Very High | C28: VH | D28: 0.8 | E28: -
B29: High | C29: H | D29: 0.6 | E29: 0.8
B30: Medium | C30: M | D30: 0.4 | E30: 0.6
B31: Low | C31: L | D31: 0.2 | E31: 0.4
B32: Very Low | C32: VL | D32: 0 | E32: 0.2
B33: These values are subjective to actor

Sheet Act4 (hidden)
B2: Actor Number | C2: Act4
B3: Actor Name | C3: KRA
B4: Role | C4: Government Agency
B5: Description | N5: Lower (>) | O5: Upper (<=)
N6: 0.8 | O6: 1
N7: 0.6 | O7: 0.8
N8: 0.4 | O8: 0.6
N9: 0.2 | O9: 0.4
N10: 0 | O10: 0.2
B12: Impact Evaluation | G12: Risk Evaluation
C13: Max | D13: Grade
B14: Enter Maximum Acceptable Damage | C14: 500 | D14: VH | G14: Risks | H14: Probability of Occurrence | I14: Impact Value | J14: Impact Grade
G15: ='Risk Register'!C6 -> R1 | H15: =Risklikelihood(G15) -> VL | I15: 0 | J15: VL
B16: Categorization | G16: ='Risk Register'!C7 -> R2 | H16: VL | I16: 0 | J16: VL
B17: Impact Level | C17: Impact Amount | D17: Grade | G17: ='Risk Register'!C8 -> R3 | H17: L | I17: 0 | J17: VL
B18: Very High | C18: =C14 -> 500 | D18: VH | G18: ='Risk Register'!C9 -> R4 | H18: VL | I18: 0 | J18: VL
B19: High | C19: =0.8*C18 -> 400 | D19: H | G19: ='Risk Register'!C10 -> R5 | H19: M | I19: 0 | J19: VL
B20: Medium | C20: =0.6*C18 -> 300 | D20: M | G20: ='Risk Register'!C11 -> R6 | H20: VL | I20: 0 | J20: VL
B21: Low | C21: =0.4*C18 -> 200 | D21: L | G21: ='Risk Register'!C12 -> R7 | H21: L | I21: 0 | J21: VL
B22: Very Low | C22: =0.2*C18 -> 100 | D22: VL | G22: ='Risk Register'!C13 -> R8 | H22: =Risklikelihood(G22) -> VL | I22: 0 | J22: VL
G23: ='Risk Register'!C14 -> R9 | H23: VL | I23: 0 | J23: VL
G24: ='Risk Register'!C15 -> R10 | H24: VL | I24: 0 | J24: VL
B25: Scaling used for analysis | G25: ='Risk Register'!C16 -> R11 | H25: VL | I25: 0 | J25: VL
B26: Impact Level | C26: Grade | D26: Impact Range | G26: ='Risk Register'!C17 -> R12 | H26: M | I26: 0 | J26: VL
D27: Lower (>) | E27: Upper (<=)
B28: Very High | C28: VH | D28: 0.8 | E28: -
B29: High | C29: H | D29: 0.6 | E29: 0.8
B30: Medium | C30: M | D30: 0.4 | E30: 0.6
B31: Low | C31: L | D31: 0.2 | E31: 0.4
B32: Very Low | C32: VL | D32: 0 | E32: 0.2
B33: These values are subjective to actor

Sheet Act5 (hidden)
B2: Actor Number | C2: Act5
B3: Actor Name | C3: GMS
B4: Role | C4: Freight forwarder | N4: Impact Range
B5: Description | N5: Lower (>) | O5: Upper (<=)
N6: 0.8 | O6: 1
N7: 0.6 | O7: 0.8
N8: 0.4 | O8: 0.6
N9: 0.2 | O9: 0.4
N10: 0 | O10: 0.2
B12: Impact Evaluation | G12: Risk Evaluation
C13: Max | D13: Grade
B14: Enter Maximum Acceptable Damage | C14: 500 | D14: VH | G14: Risks | H14: Probability of Occurrence | I14: Impact Value | J14: Impact Grade
G15: ='Risk Register'!C6 -> R1 | H15: =Risklikelihood(G15) -> VL | I15: 0 | J15: VL
B16: Categorization | G16: ='Risk Register'!C7 -> R2 | H16: VL | I16: 0 | J16: VL
B17: Impact Level | C17: Impact Amount | D17: Grade | G17: ='Risk Register'!C8 -> R3 | H17: L | I17: 0 | J17: VL
B18: Very High | C18: =C14 -> 500 | D18: VH | G18: ='Risk Register'!C9 -> R4 | H18: VL | I18: 0 | J18: VL
B19: High | C19: =0.8*C18 -> 400 | D19: H | G19: ='Risk Register'!C10 -> R5 | H19: M | I19: 0 | J19: VL
B20: Medium | C20: =0.6*C18 -> 300 | D20: M | G20: ='Risk Register'!C11 -> R6 | H20: VL | I20: 0 | J20: VL
B21: Low | C21: =0.4*C18 -> 200 | D21: L | G21: ='Risk Register'!C12 -> R7 | H21: L | I21: 0 | J21: VL
B22: Very Low | C22: =0.2*C18 -> 100 | D22: VL | G22: ='Risk Register'!C13 -> R8 | H22: =Risklikelihood(G22) -> VL | I22: 0 | J22: VL
G23: ='Risk Register'!C14 -> R9 | H23: VL | I23: 0 | J23: VL
G24: ='Risk Register'!C15 -> R10 | H24: VL | I24: 0 | J24: VL
B25: Scaling used for analysis | G25: ='Risk Register'!C16 -> R11 | H25: VL | I25: 0 | J25: VL
B26: Impact Level | C26: Grade | D26: Impact Range | G26: ='Risk Register'!C17 -> R12 | H26: M | I26: 0 | J26: VL
D27: Lower (>) | E27: Upper (<=)
B28: Very High | C28: VH | D28: 0.8 | E28: -
B29: High | C29: H | D29: 0.6 | E29: 0.8
B30: Medium | C30: M | D30: 0.4 | E30: 0.6
B31: Low | C31: L | D31: 0.2 | E31: 0.4
B32: Very Low | C32: VL | D32: 0 | E32: 0.2
B33: These values are subjective to actor

Sheet Act6 (hidden)
B2: Actor Number | C2: Act6
B3: Actor Name | C3: KEPHIS
B4: Role | C4: Inspection Agency | N4: Impact Range
B5: Description | N5: Lower (>) | O5: Upper (<=)
N6: 0.8 | O6: 1
N7: 0.6 | O7: 0.8
N8: 0.4 | O8: 0.6
N9: 0.2 | O9: 0.4
N10: 0 | O10: 0.2
B12: Impact Evaluation | G12: Risk Evaluation
C13: Max | D13: Grade
B14: Enter Maximum Acceptable Damage | C14: 500 | D14: VH | G14: Risks | H14: Probability of Occurrence | I14: Impact Value | J14: Impact Grade
G15: ='Risk Register'!C6 -> R1 | H15: =Risklikelihood(G15) -> VL | I15: 0 | J15: VL
B16: Categorization | G16: ='Risk Register'!C7 -> R2 | H16: VL | I16: 0 | J16: VL
B17: Impact Level | C17: Impact Amount | D17: Grade | G17: ='Risk Register'!C8 -> R3 | H17: L | I17: 0 | J17: VL
B18: Very High | C18: =C14 -> 500 | D18: VH | G18: ='Risk Register'!C9 -> R4 | H18: VL | I18: 0 | J18: VL
B19: High | C19: =0.8*C18 -> 400 | D19: H | G19: ='Risk Register'!C10 -> R5 | H19: M | I19: 0 | J19: VL
B20: Medium | C20: =0.6*C18 -> 300 | D20: M | G20: ='Risk Register'!C11 -> R6 | H20: VL | I20: 0 | J20: VL
B21: Low | C21: =0.4*C18 -> 200 | D21: L | G21: ='Risk Register'!C12 -> R7 | H21: L | I21: 0 | J21: VL
B22: Very Low | C22: =0.2*C18 -> 100 | D22: VL | G22: ='Risk Register'!C13 -> R8 | H22: =Risklikelihood(G22) -> VL | I22: 0 | J22: VL
G23: ='Risk Register'!C14 -> R9 | H23: VL | I23: 0 | J23: VL
G24: ='Risk Register'!C15 -> R10 | H24: VL | I24: 0 | J24: VL
B25: Scaling used for analysis | G25: ='Risk Register'!C16 -> R11 | H25: VL | I25: 0 | J25: VL
B26: Impact Level | C26: Grade | D26: Impact Range | G26: ='Risk Register'!C17 -> R12 | H26: M | I26: 0 | J26: VL
D27: Lower (>) | E27: Upper (<=)
B28: Very High | C28: VH | D28: 0.8 | E28: -
B29: High | C29: H | D29: 0.6 | E29: 0.8
B30: Medium | C30: M | D30: 0.4 | E30: 0.6
B31: Low | C31: L | D31: 0.2 | E31: 0.4
B32: Very Low | C32: VL | D32: 0 | E32: 0.2
B33: These values are subjective to actor

Sheet Act7 (hidden)
B2: Actor Number | C2: Act7
B3: Actor Name | C3: Grower
B4: Role | C4: Producer | N4: Impact Range
B5: Description | N5: Lower (>) | O5: Upper (<=)
N6: 0.8 | O6: 1
N7: 0.6 | O7: 0.8
N8: 0.4 | O8: 0.6
N9: 0.2 | O9: 0.4
N10: 0 | O10: 0.2
B12: Impact Evaluation | G12: Risk Evaluation
C13: Max | D13: Grade
B14: Enter Maximum Acceptable Damage | C14: 500 | D14: VH | G14: Risks | H14: Probability of Occurrence | I14: Impact Value | J14: Impact Grade
G15: ='Risk Register'!C6 -> R1 | H15: =Risklikelihood(G15) -> VL | I15: 0 | J15: VL
B16: Categorization | G16: ='Risk Register'!C7 -> R2 | H16: VL | I16: 0 | J16: VL
B17: Impact Level | C17: Impact Amount | D17: Grade | G17: ='Risk Register'!C8 -> R3 | H17: L | I17: 0 | J17: VL
B18: Very High | C18: =C14 -> 500 | D18: VH | G18: ='Risk Register'!C9 -> R4 | H18: VL | I18: 0 | J18: VL
B19: High | C19: =0.8*C18 -> 400 | D19: H | G19: ='Risk Register'!C10 -> R5 | H19: M | I19: 0 | J19: VL
B20: Medium | C20: =0.6*C18 -> 300 | D20: M | G20: ='Risk Register'!C11 -> R6 | H20: VL | I20: 0 | J20: VL
B21: Low | C21: =0.4*C18 -> 200 | D21: L | G21: ='Risk Register'!C12 -> R7 | H21: L | I21: 0 | J21: VL
B22: Very Low | C22: =0.2*C18 -> 100 | D22: VL | G22: ='Risk Register'!C13 -> R8 | H22: =Risklikelihood(G22) -> VL | I22: 0 | J22: VL
G23: ='Risk Register'!C14 -> R9 | H23: VL | I23: 0 | J23: VL
G24: ='Risk Register'!C15 -> R10 | H24: VL | I24: 0 | J24: VL
B25: Scaling used for analysis | G25: ='Risk Register'!C16 -> R11 | H25: VL | I25: 0 | J25: VL
B26: Impact Level | C26: Grade | D26: Impact Range | G26: ='Risk Register'!C17 -> R12 | H26: M | I26: 0 | J26: VL
D27: Lower (>) | E27: Upper (<=)
B28: Very High | C28: VH | D28: 0.8 | E28: -
B29: High | C29: H | D29: 0.6 | E29: 0.8
B30: Medium | C30: M | D30: 0.4 | E30: 0.6
B31: Low | C31: L | D31: 0.2 | E31: 0.4
B32: Very Low | C32: VL | D32: 0 | E32: 0.2
B33: These values are subjective to actor

Sheet Act8 (hidden)
B2: Actor Number | C2: Act8
B3: Actor Name | C3: KPA
B4: Role | C4: Port Authority | N4: Impact Range
B5: Description | N5: Lower (>) | O5: Upper (<=)
N6: 0.8 | O6: 1
N7: 0.6 | O7: 0.8
N8: 0.4 | O8: 0.6
N9: 0.2 | O9: 0.4
N10: 0 | O10: 0.2
B12: Impact Evaluation | G12: Risk Evaluation
C13: Max | D13: Grade
B14: Enter Maximum Acceptable Damage | C14: 500 | D14: VH | G14: Risks | H14: Probability of Occurrence | I14: Impact Value | J14: Impact Grade
G15: ='Risk Register'!C6 -> R1 | H15: =Risklikelihood(G15) -> VL | I15: 0 | J15: VL
B16: Categorization | G16: ='Risk Register'!C7 -> R2 | H16: VL | I16: 0 | J16: VL
B17: Impact Level | C17: Impact Amount | D17: Grade | G17: ='Risk Register'!C8 -> R3 | H17: L | I17: 0 | J17: VL
B18: Very High | C18: =C14 -> 500 | D18: VH | G18: ='Risk Register'!C9 -> R4 | H18: VL | I18: 0 | J18: VL
B19: High | C19: =0.8*C18 -> 400 | D19: H | G19: ='Risk Register'!C10 -> R5 | H19: M | I19: 0 | J19: VL
B20: Medium | C20: =0.6*C18 -> 300 | D20: M | G20: ='Risk Register'!C11 -> R6 | H20: VL | I20: 0 | J20: VL
B21: Low | C21: =0.4*C18 -> 200 | D21: L | G21: ='Risk Register'!C12 -> R7 | H21: L | I21: 0 | J21: VL
B22: Very Low | C22: =0.2*C18 -> 100 | D22: VL | G22: ='Risk Register'!C13 -> R8 | H22: =Risklikelihood(G22) -> VL | I22: 0 | J22: VL
G23: ='Risk Register'!C14 -> R9 | H23: VL | I23: 0 | J23: VL
G24: ='Risk Register'!C15 -> R10 | H24: VL | I24: 0 | J24: VL
B25: Scaling used for analysis | G25: ='Risk Register'!C16 -> R11 | H25: VL | I25: 0 | J25: VL
B26: Impact Level | C26: Grade | D26: Impact Range | G26: ='Risk Register'!C17 -> R12 | H26: M | I26: 0 | J26: VL
D27: Lower (>) | E27: Upper (<=)
B28: Very High | C28: VH | D28: 0.8 | E28: -
B29: High | C29: H | D29: 0.6 | E29: 0.8
B30: Medium | C30: M | D30: 0.4 | E30: 0.6
B31: Low | C31: L | D31: 0.2 | E31: 0.4
B32: Very Low | C32: VL | D32: 0 | E32: 0.2
B33: These values are subjective to actor

Sheet Act9 (hidden)
B2: Actor Number | C2: Act10
B3: Actor Name | C3: van Duijn
B4: Role | C4: Freight forwarder | N4: Impact Range
B5: Description | N5: Lower (>) | O5: Upper (<=)
N6: 0.8 | O6: 1
N7: 0.6 | O7: 0.8
N8: 0.4 | O8: 0.6
N9: 0.2 | O9: 0.4
N10: 0 | O10: 0.2
B12: Impact Evaluation | G12: Risk Evaluation
C13: Max | D13: Grade
B14: Enter Maximum Acceptable Damage | C14: 500 | D14: VH | G14: Risks | H14: Probability of Occurrence | I14: Impact Value | J14: Impact Grade
G15: ='Risk Register'!C6 -> R1 | H15: =Risklikelihood(G15) -> VL | I15: 0 | J15: VL
B16: Categorization | G16: ='Risk Register'!C7 -> R2 | H16: VL | I16: 0 | J16: VL
B17: Impact Level | C17: Impact Amount | D17: Grade | G17: ='Risk Register'!C8 -> R3 | H17: L | I17: 0 | J17: VL
B18: Very High | C18: =C14 -> 500 | D18: VH | G18: ='Risk Register'!C9 -> R4 | H18: VL | I18: 0 | J18: VL
B19: High | C19: =0.8*C18 -> 400 | D19: H | G19: ='Risk Register'!C10 -> R5 | H19: M | I19: 0 | J19: VL
B20: Medium | C20: =0.6*C18 -> 300 | D20: M | G20: ='Risk Register'!C11 -> R6 | H20: VL | I20: 0 | J20: VL
B21: Low | C21: =0.4*C18 -> 200 | D21: L | G21: ='Risk Register'!C12 -> R7 | H21: L | I21: 0 | J21: VL
B22: Very Low | C22: =0.2*C18 -> 100 | D22: VL | G22: ='Risk Register'!C13 -> R8 | H22: =Risklikelihood(G22) -> VL | I22: 0 | J22: VL
G23: ='Risk Register'!C14 -> R9 | H23: VL | I23: 0 | J23: VL
G24: ='Risk Register'!C15 -> R10 | H24: VL | I24: 0 | J24: VL
B25: Scaling used for analysis | G25: ='Risk Register'!C16 -> R11 | H25: VL | I25: 0 | J25: VL
B26: Impact Level | C26: Grade | D26: Impact Range | G26: ='Risk Register'!C17 -> R12 | H26: M | I26: 0 | J26: VL
D27: Lower (>) | E27: Upper (<=)
B28: Very High | C28: VH | D28: 0.8 | E28: -
B29: High | C29: H | D29: 0.6 | E29: 0.8
B30: Medium | C30: M | D30: 0.4 | E30: 0.6
B31: Low | C31: L | D31: 0.2 | E31: 0.4
B32: Very Low | C32: VL | D32: 0 | E32: 0.2
B33: These values are subjective to actor

Sheet Act10 (hidden)
B2: Actor Number | C2: Act9
B3: Actor Name | C3: APM
B4: Role | C4: Terminal Import | N4: Impact Range
B5: Description | N5: Lower (>) | O5: Upper (<=)
N6: 0.8 | O6: 1
N7: 0.6 | O7: 0.8
N8: 0.4 | O8: 0.6
N9: 0.2 | O9: 0.4
N10: 0 | O10: 0.2
B12: Impact Evaluation | G12: Risk Evaluation
C13: Max | D13: Grade
B14: Enter Maximum Acceptable Damage | C14: 500 | D14: VH | G14: Risks | H14: Probability of Occurrence | I14: Impact Value | J14: Impact Grade
G15: ='Risk Register'!C6 -> R1 | H15: =Risklikelihood(G15) -> VL | I15: 0 | J15: VL
B16: Categorization | G16: ='Risk Register'!C7 -> R2 | H16: VL | I16: 0 | J16: VL
B17: Impact Level | C17: Impact Amount | D17: Grade | G17: ='Risk Register'!C8 -> R3 | H17: L | I17: 0 | J17: VL
B18: Very High | C18: =C14 -> 500 | D18: VH | G18: ='Risk Register'!C9 -> R4 | H18: VL | I18: 0 | J18: VL
B19: High | C19: =0.8*C18 -> 400 | D19: H | G19: ='Risk Register'!C10 -> R5 | H19: M | I19: 0 | J19: VL
B20: Medium | C20: =0.6*C18 -> 300 | D20: M | G20: ='Risk Register'!C11 -> R6 | H20: VL | I20: 0 | J20: VL
B21: Low | C21: =0.4*C18 -> 200 | D21: L | G21: ='Risk Register'!C12 -> R7 | H21: L | I21: 0 | J21: VL
B22: Very Low | C22: =0.2*C18 -> 100 | D22: VL | G22: ='Risk Register'!C13 -> R8 | H22: =Risklikelihood(G22) -> VL | I22: 0 | J22: VL
G23: ='Risk Register'!C14 -> R9 | H23: VL | I23: 0 | J23: VL
G24: ='Risk Register'!C15 -> R10 | H24: VL | I24: 0 | J24: VL
B25: Scaling used for analysis | G25: ='Risk Register'!C16 -> R11 | H25: VL | I25: 0 | J25: VL
B26: Impact Level | C26: Grade | D26: Impact Range | G26: ='Risk Register'!C17 -> R12 | H26: M | I26: 0 | J26: VL
D27: Lower (>) | E27: Upper (<=)
B28: Very High | C28: VH | D28: 0.8 | E28: -
B29: High | C29: H | D29: 0.6 | E29: 0.8
B30: Medium | C30: M | D30: 0.4 | E30: 0.6
B31: Low | C31: L | D31: 0.2 | E31: 0.4
B32: Very Low | C32: VL | D32: 0 | E32: 0.2
B33: These values are subjective to actor

Sheet Act11 (hidden)
B2: Actor Number | C2: Act11
B3: Actor Name | C3: Truck Export Side
B4: Role | C4: Interland Carrier | N4: Impact Range
B5: Description | N5: Lower (>) | O5: Upper (<=)
N6: 0.8 | O6: 1
N7: 0.6 | O7: 0.8
N8: 0.4 | O8: 0.6
N9: 0.2 | O9: 0.4
N10: 0 | O10: 0.2
B12: Impact Evaluation | G12: Risk Evaluation
C13: Max | D13: Grade
B14: Enter Maximum Acceptable Damage | C14: 500 | D14: VH | G14: Risks | H14: Probability of Occurrence | I14: Impact Value | J14: Impact Grade
G15: ='Risk Register'!C6 -> R1 | H15: =Risklikelihood(G15) -> VL | I15: 0 | J15: VL
B16: Categorization | G16: ='Risk Register'!C7 -> R2 | H16: VL | I16: 0 | J16: VL
B17: Impact Level | C17: Impact Amount | D17: Grade | G17: ='Risk Register'!C8 -> R3 | H17: L | I17: 0 | J17: VL
B18: Very High | C18: =C14 -> 500 | D18: VH | G18: ='Risk Register'!C9 -> R4 | H18: VL | I18: 0 | J18: VL
B19: High | C19: =0.8*C18 -> 400 | D19: H | G19: ='Risk Register'!C10 -> R5 | H19: M | I19: 0 | J19: VL
B20: Medium | C20: =0.6*C18 -> 300 | D20: M | G20: ='Risk Register'!C11 -> R6 | H20: VL | I20: 0 | J20: VL
B21: Low | C21: =0.4*C18 -> 200 | D21: L | G21: ='Risk Register'!C12 -> R7 | H21: L | I21: 0 | J21: VL
B22: Very Low | C22: =0.2*C18 -> 100 | D22: VL | G22: ='Risk Register'!C13 -> R8 | H22: =Risklikelihood(G22) -> VL | I22: 0 | J22: VL
G23: ='Risk Register'!C14 -> R9 | H23: VL | I23: 0 | J23: VL
G24: ='Risk Register'!C15 -> R10 | H24: VL | I24: 0 | J24: VL
B25: Scaling used for analysis | G25: ='Risk Register'!C16 -> R11 | H25: VL | I25: 0 | J25: VL
B26: Impact Level | C26: Grade | D26: Impact Range | G26: ='Risk Register'!C17 -> R12 | H26: M | I26: 0 | J26: VL
D27: Lower (>) | E27: Upper (<=)
B28: Very High | C28: VH | D28: 0.8 | E28: -
B29: High | C29: H | D29: 0.6 | E29: 0.8
B30: Medium | C30: M | D30: 0.4 | E30: 0.6
B31: Low | C31: L | D31: 0.2 | E31: 0.4
B32: Very Low | C32: VL | D32: 0 | E32: 0.2
B33: These values are subjective to actor

Sheet Act12 (hidden)
B2: Actor Number | C2: Act12
B3: Actor Name | C3: Truck Import Side
B4: Role | C4: Interland Carrier | N4: Impact Range
B5: Description | N5: Lower (>) | O5: Upper (<=)
N6: 0.8 | O6: 1
N7: 0.6 | O7: 0.8
N8: 0.4 | O8: 0.6
N9: 0.2 | O9: 0.4
N10: 0 | O10: 0.2
B12: Impact Evaluation | G12: Risk Evaluation
C13: Max | D13: Grade
B14: Enter Maximum Acceptable Damage | C14: 500 | D14: VH | G14: Risks | H14: Probability of Occurrence | I14: Impact Value | J14: Impact Grade
G15: ='Risk Register'!C6 -> R1 | H15: =Risklikelihood(G15) -> VL | I15: 0 | J15: VL
B16: Categorization | G16: ='Risk Register'!C7 -> R2 | H16: VL | I16: 0 | J16: VL
B17: Impact Level | C17: Impact Amount | D17: Grade | G17: ='Risk Register'!C8 -> R3 | H17: L | I17: 0 | J17: VL
B18: Very High | C18: =C14 -> 500 | D18: VH | G18: ='Risk Register'!C9 -> R4 | H18: VL | I18: 0 | J18: VL
B19: High | C19: =0.8*C18 -> 400 | D19: H | G19: ='Risk Register'!C10 -> R5 | H19: M | I19: 0 | J19: VL
B20: Medium | C20: =0.6*C18 -> 300 | D20: M | G20: ='Risk Register'!C11 -> R6 | H20: VL | I20: 0 | J20: VL
B21: Low | C21: =0.4*C18 -> 200 | D21: L | G21: ='Risk Register'!C12 -> R7 | H21: L | I21: 0 | J21: VL
B22: Very Low | C22: =0.2*C18 -> 100 | D22: VL | G22: ='Risk Register'!C13 -> R8 | H22: =Risklikelihood(G22) -> VL | I22: 0 | J22: VL
G23: ='Risk Register'!C14 -> R9 | H23: VL | I23: 0 | J23: VL
G24: ='Risk Register'!C15 -> R10 | H24: VL | I24: 0 | J24: VL
B25: Scaling used for analysis | G25: ='Risk Register'!C16 -> R11 | H25: VL | I25: 0 | J25: VL
B26: Impact Level | C26: Grade | D26: Impact Range | G26: ='Risk Register'!C17 -> R12 | H26: M | I26: 0 | J26: VL
D27: Lower (>) | E27: Upper (<=)
B28: Very High | C28: VH | D28: 0.8 | E28: -
B29: High | C29: H | D29: 0.6 | E29: 0.8
B30: Medium | C30: M | D30: 0.4 | E30: 0.6
B31: Low | C31: L | D31: 0.2 | E31: 0.4
B32: Very Low | C32: VL | D32: 0 | E32: 0.2
B33: These values are subjective to actor

Sheet Act13 (hidden)
B2: Actor Number | C2: Act13
B3: Actor Name | C3: Terminal Export Side
B4: Role | C4: Terminal Export | N4: Impact Range
B5: Description | N5: Lower (>) | O5: Upper (<=)
N6: 0.8 | O6: 1
N7: 0.6 | O7: 0.8
N8: 0.4 | O8: 0.6
N9: 0.2 | O9: 0.4
N10: 0 | O10: 0.2
B12: Impact Evaluation | G12: Risk Evaluation
C13: Max | D13: Grade
B14: Enter Maximum Acceptable Damage | C14: 500 | D14: VH | G14: Risks | H14: Probability of Occurrence | I14: Impact Value | J14: Impact Grade
G15: ='Risk Register'!C6 -> R1 | H15: =Risklikelihood(G15) -> VL | I15: 0 | J15: VL
B16: Categorization | G16: ='Risk Register'!C7 -> R2 | H16: VL | I16: 0 | J16: VL
B17: Impact Level | C17: Impact Amount | D17: Grade | G17: ='Risk Register'!C8 -> R3 | H17: L | I17: 0 | J17: VL
B18: Very High | C18: =C14 -> 500 | D18: VH | G18: ='Risk Register'!C9 -> R4 | H18: VL | I18: 0 | J18: VL
B19: High | C19: =0.8*C18 -> 400 | D19: H | G19: ='Risk Register'!C10 -> R5 | H19: M | I19: 0 | J19: VL
B20: Medium | C20: =0.6*C18 -> 300 | D20: M | G20: ='Risk Register'!C11 -> R6 | H20: VL | I20: 0 | J20: VL
B21: Low | C21: =0.4*C18 -> 200 | D21: L | G21: ='Risk Register'!C12 -> R7 | H21: L | I21: 0 | J21: VL
B22: Very Low | C22: =0.2*C18 -> 100 | D22: VL | G22: ='Risk Register'!C13 -> R8 | H22: =Risklikelihood(G22) -> VL | I22: 0 | J22: VL
G23: ='Risk Register'!C14 -> R9 | H23: VL | I23: 0 | J23: VL
G24: ='Risk Register'!C15 -> R10 | H24: VL | I24: 0 | J24: VL
B25: Scaling used for analysis | G25: ='Risk Register'!C16 -> R11 | H25: VL | I25: 0 | J25: VL
B26: Impact Level | C26: Grade | D26: Impact Range | G26: ='Risk Register'!C17 -> R12 | H26: M | I26: 0 | J26: VL
D27: Lower (>) | E27: Upper (<=)
B28: Very High | C28: VH | D28: 0.8 | E28: -
B29: High | C29: H | D29: 0.6 | E29: 0.8
B30: Medium | C30: M | D30: 0.4 | E30: 0.6
B31: Low | C31: L | D31: 0.2 | E31: 0.4
B32: Very Low | C32: VL | D32: 0 | E32: 0.2
B33: These values are subjective to actor

Sheet Act14 (hidden)
B2: Actor Number | C2: Act14
B3: Actor Name | C3: HTS
B4: Role | C4: Freight forwarder | N4: Impact Range
B5: Description | N5: Lower (>) | O5: Upper (<=)
N6: 0.8 | O6: 1
N7: 0.6 | O7: 0.8
N8: 0.4 | O8: 0.6
N9: 0.2 | O9: 0.4
N10: 0 | O10: 0.2
B12: Impact Evaluation | G12: Risk Evaluation
C13: Max | D13: Grade
B14: Enter Maximum Acceptable Damage | C14: 500 | D14: VH | G14: Risks | H14: Probability of Occurrence | I14: Impact Value | J14: Impact Grade
G15: ='Risk Register'!C6 -> R1 | H15: =Risklikelihood(G15) -> VL | I15: 0 | J15: VL
B16: Categorization | G16: ='Risk Register'!C7 -> R2 | H16: VL | I16: 0 | J16: VL
B17: Impact Level | C17: Impact Amount | D17: Grade | G17: ='Risk Register'!C8 -> R3 | H17: L | I17: 0 | J17: VL
B18: Very High | C18: =C14 -> 500 | D18: VH | G18: ='Risk Register'!C9 -> R4 | H18: VL | I18: 0 | J18: VL
B19: High | C19: =0.8*C18 -> 400 | D19: H | G19: ='Risk Register'!C10 -> R5 | H19: M | I19: 0 | J19: VL
B20: Medium | C20: =0.6*C18 -> 300 | D20: M | G20: ='Risk Register'!C11 -> R6 | H20: VL | I20: 0 | J20: VL
B21: Low | C21: =0.4*C18 -> 200 | D21: L | G21: ='Risk Register'!C12 -> R7 | H21: L | I21: 0 | J21: VL
B22: Very Low | C22: =0.2*C18 -> 100 | D22: VL | G22: ='Risk Register'!C13 -> R8 | H22: VL | I22: 0 | J22: VL
G23: ='Risk Register'!C14 -> R9 | H23: VL | I23: 0 | J23: VL
G24: ='Risk Register'!C15 -> R10 | H24: VL | I24: 0 | J24: VL
B25: Scaling used for analysis | G25: ='Risk Register'!C16 -> R11 | H25: VL | I25: 0 | J25: VL
B26: Impact Level | C26: Grade | D26: Impact Range | G26: ='Risk Register'!C17 -> R12 | H26: M | I26: 0 | J26: VL
D27: Lower (>) | E27: Upper (<=)
B28: Very High | C28: VH | D28: 0.8 | E28: -
B29: High | C29: H | D29: 0.6 | E29: 0.8
B30: Medium | C30: M | D30: 0.4 | E30: 0.6
B31: Low | C31: L | D31: 0.2 | E31: 0.4
B32: Very Low | C32: VL | D32: 0 | E32: 0.2
B33: These values are subjective to actor

Sheet Act15 (hidden)
B2: Actor Number | C2: Act15
B3: Actor Name | C3: Customs Kenya
B4: Role | C4: Customs Export | N4: Impact Range
B5: Description | N5: Lower (>) | O5: Upper (<=)
N6: 0.8 | O6: 1
N7: 0.6 | O7: 0.8
N8: 0.4 | O8: 0.6
N9: 0.2 | O9: 0.4
N10: 0 | O10: 0.2
B12: Impact Evaluation | G12: Risk Evaluation
C13: Max | D13: Grade
B14: Enter Maximum Acceptable Damage | C14: 500 | D14: VH | G14: Risks | H14: Probability of Occurrence | I14: Impact Value | J14: Impact Grade
G15: ='Risk Register'!C6 -> R1 | H15: =Risklikelihood(G15) -> VL | I15: 0 | J15: VL
B16: Categorization | G16: ='Risk Register'!C7 -> R2 | H16: VL | I16: 0 | J16: VL
B17: Impact Level | C17: Impact Amount | D17: Grade | G17: ='Risk Register'!C8 -> R3 | H17: L | I17: 350 | J17: M
B18: Very High | C18: =C14 -> 500 | D18: VH | G18: ='Risk Register'!C9 -> R4 | H18: VL | I18: 0 | J18: VL
B19: High | C19: =0.8*C18 -> 400 | D19: H | G19: ='Risk Register'!C10 -> R5 | H19: M | I19: 0 | J19: VL
B20: Medium | C20: =0.6*C18 -> 300 | D20: M | G20: ='Risk Register'!C11 -> R6 | H20: VL | I20: 0 | J20: VL
B21: Low | C21: =0.4*C18 -> 200 | D21: L | G21: ='Risk Register'!C12 -> R7 | H21: L | I21: 0 | J21: VL
B22: Very Low | C22: =0.2*C18 -> 100 | D22: VL
B25: Scaling used for analysis
B26: Impact Level | C26: Grade | D26: Impact Range
D27: Lower (>) | E27: Upper (<=)
B28: Very High | C28: VH | D28: 0.8 | E28: -
B29: High | C29: H | D29: 0.6 | E29: 0.8
B30: Medium | C30: M | D30: 0.4 | E30: 0.6
B31: Low | C31: L | D31: 0.2 | E31: 0.4
B32: Very Low | C32: VL | D32: 0 | E32: 0.2
B33: These values are subjective to actor

Sheet Act16 (hidden)
B2: Actor Number | C2: Act16
B3: Actor Name | C3: Customs Import
B4: Role | C4: Customs Import | N4: Impact Range
B5: Description | N5: Lower (>) | O5: Upper (<=)
N6: 0.8 | O6: 1
N7: 0.6 | O7: 0.8
N8: 0.4 | O8: 0.6
N9: 0.2 | O9: 0.4
N10: 0 | O10: 0.2
B12: Impact Evaluation | G12: Risk Evaluation
C13: Max | D13: Grade
B14: Enter Maximum Acceptable Damage | C14: 500 | D14: VH | G14: Risks | H14: Probability of Occurrence | I14: Impact Value | J14: Impact Grade
G15: ='Risk Register'!C6 -> R1 | H15: =Risklikelihood(G15) -> VL | I15: 0 | J15: VL
B16: Categorization | G16: ='Risk Register'!C7 -> R2 | H16: VL | I16: 0 | J16: VL
B17: Impact Level | C17: Impact Amount | D17: Grade | G17: ='Risk Register'!C8 -> R3 | H17: L | I17: 350 | J17: M
B18: Very High | C18: =C14 -> 500 | D18: VH | G18: ='Risk Register'!C9 -> R4 | H18: VL | I18: 0 | J18: VL
B19: High | C19: =0.8*C18 -> 400 | D19: H | G19: ='Risk Register'!C10 -> R5 | H19: M | I19: 0 | J19: VL
B20: Medium | C20: =0.6*C18 -> 300 | D20: M | G20: ='Risk Register'!C11 -> R6 | H20: VL | I20: 0 | J20: VL
B21: Low | C21: =0.4*C18 -> 200 | D21: L | G21: ='Risk Register'!C12 -> R7 | H21: L | I21: 0 | J21: VL
B22: Very Low | C22: =0.2*C18 -> 100 | D22: VL
B25: Scaling used for analysis
B26: Impact Level | C26: Grade | D26: Impact Range
D27: Lower (>) | E27: Upper (<=)
B28: Very High | C28: VH | D28: 0.8 | E28: -
B29: High | C29: H | D29: 0.6 | E29: 0.8
B30: Medium | C30: M | D30: 0.4 | E30: 0.6
B31: Low | C31: L | D31: 0.2 | E31: 0.4
B32: Very Low | C32: VL | D32: 0 | E32: 0.2
B33: These values are subjective to actor

Sheet Overall View (hidden)
D3: Jumbo Fresh
D4: Wintech
D5: MAERSK
D6: KRA
D7: GMS
D8: KEPHIS
D9: Grower
D10: KPA
D11: Opticool
D12: APM
D13: Truck Export Side
D14: Truck Import Side
D15: Terminal Export Side
D16: HTS
